Codice, Stato, Data avvio progetto, Soc. aeroportuale, Descrizione,Importo finanziato, Valore appaltato, Data progettazione esecutiva, Data ultimo SAL approvato, SAL approvati, IAT, IAT approvato, IAF, Percentuale finanziamento pubblico, Categoria Intervento da Scheda A
AHO-FNC9,Approvato,12/05/2015,SOGEAAL S.p.A.,4 - INTERVENTI VARI E DI MANUTENZIONE STRAORDINARIA - Adeguamento recinzione guida planata,190969.86,179501.14,16/06/2015,28/06/2016,179501.15,100,100,100,"100,00 %",
AHO-INV1,Approvato,12/05/2015,SOGEAAL S.p.A.,2 - INTERVENTI INFRASTRUTTURE DI VOLO - Riqualifica pavimentazione pista di volo,1532641.08,1435463.91,21/05/2015,01/08/2016,1465854.4,100,100,102.12,"100,00 %",
AHO-INV4,Approvato,12/05/2015,SOGEAAL S.p.A.,2 - INTERVENTI INFRASTRUTTURE DI VOLO - Adeguamento infrastrutture di volo alla normativa ICAO - Por,2122480.9,1771211.05,25/11/2015,17/07/2017,1197153.37,100,100,67.59,"100,00 %",
AHO-INV5,Approvato,19/06/2015,SOGEAAL S.p.A.,2 - INTERVENTI INFRASTRUTTURE DI VOLO - Completamento pavimentazione asse di scorrimento del piazzal,511094.21,458296.32,15/07/2015,11/07/2016,320722.06,61,61,69.98,"100,00 %",
BGY-AH247,Approvato,18/12/2015,SACBO S.p.A.,Adeguamento STRIP,991294.4,729794.4,29/03/2016,20/11/2017,947093.79,45,30,129.78,"0,00 %",Pista
BGY-ALT103,Approvato,08/02/2017,SACBO S.p.A.,MANUTENZIONE STRAORDINARIA PMS 2016_2017,2463811.64,2463811.64,12/06/2017,31/12/2018,2913212.33,33.97,33.97,118.24,"0,00 %",PMS - Piano Man. Straord.
BGY-AVL105,Approvato,10/07/2018,SACBO S.p.A.,GUIDE OTTICHE,89800,85000,05/10/2018,31/12/2018,85000,100,100,100,"0,00 %",AVL
BGY-AVL121,Approvato,05/03/2018,SACBO S.p.A.,RIPOSIZIONAMENTO GUIDE OTTICHE STAND 207_2019,26000,26000,12/04/2018,31/12/2018,22000,100,100,84.62,"0,00 %",AVL
BGY-AVL44,Approvato,26/02/2015,SACBO S.p.A.,Sostituzione e integrazione torri faro area nord,111456.47,82348.47,23/04/2015,30/06/2016,84879.38,100,100,103.07,"0,00 %",PMS - Piano Man. Straord.
BGY-EDI108,Approvato,28/07/2016,SACBO S.p.A.,Nuovo capannone mezzi rampa_STRUTTURA,1813243.71,1639152.84,03/04/2017,08/05/2018,1589176.8,15.7,15.7,96.95,"0,00 %",Altri edifici
BGY-EDI109,Approvato,27/02/2018,SACBO S.p.A.,Nuovo capannone mezzi rampa_UFFICI,910634.66,803761.41,30/05/2018,30/11/2018,803761.42,2.06,2.06,100,"0,00 %",Altri edifici
BGY-INV100,Approvato,05/07/2016,SACBO S.p.A.,Completamento Piazzale sud ovest - piazzola AVGAS,102069.45,68069.45,06/09/2017,31/12/2017,68069.45,100,1,100,"0,00 %",Piazzali
BGY-INV48,Approvato,17/10/2017,SACBO S.p.A.,Piazzale AA/MM Nord e piazzola prova motori FASE1,12686499,11101499,28/02/2018,20/12/2018,10990483.99,5.01,5.01,99,"0,00 %",Piazzali
BGY-INV85,Approvato,12/05/2015,SACBO S.p.A.,Raccordo MIL,839153.78,753266.33,18/08/2015,31/03/2016,753266.33,100,100,100,"0,00 %",Piazzali
BGY-INV99,Approvato,06/10/2016,SACBO S.p.A.,Completamento Piazzale Sud Ovest - Appalto principale,5581796.47,4636416.2,,27/12/2017,4607928.94,26.66,3.07,99.39,"0,00 %",Piazzali
BGY-NET53,Approvato,01/06/2017,SACBO S.p.A.,Alimentazione elettrica 400Hz,753417.5,650817.5,21/08/2017,28/02/2018,650817.5,58.99,58.99,100,"0,00 %",Rete e impianti
BGY-STR52,Approvato,06/06/2017,SACBO S.p.A.,Area sosta mezzi handling,721818.07,605055.85,01/08/2017,12/04/2018,605055.85,44.09,12.83,100,"0,00 %",Piazzali
BLQ-ALT218,Approvato,10/04/2017,SAB Spa,Altri interventi attivit� commerciali,706981.62,605603.62,09/06/2017,29/11/2018,656033.12,100,100,108.33,"0,00 %",Altri interventi terminal
BLQ-ALT360,Approvato,04/06/2009,SAB Spa,People Mover - contributo convenzione,2700000,2700000,04/06/2009,30/04/2017,1780000,100,100,65.93,"0,00 %","Strade, pertinenze e viadotti"
BLQ-ALT368,Approvato,07/12/2017,SAB Spa,Installazione banner pubblicitario (integrato),90000,62457.08,11/01/2018,12/06/2018,66014.95,100,100,105.7,"0,00 %",Altri interventi
BLQ-ALT370,Approvato,15/12/2017,SAB Spa,Altri interventi piano di utilizzo - Nuovo counter facility,78353.67,32300.33,07/02/2018,30/11/2018,33923.91,100,100,105.03,"0,00 %",PUA - Piano Utilizzo Aerostazione
BLQ-EDI2,Approvato,28/12/2009,SAB Spa,Riqualifica aerostazione esistente,513706,513706,25/06/2010,31/03/2016,416297.96,100,100,81.04,"0,00 %",Altri interventi terminal
BLQ-EDI295,Approvato,01/08/2014,SAB Spa,Ampliamento sala arrivi Extra Schengen - Appalto principale,300638.16,255934.7,04/08/2015,09/03/2016,299265.28,100,100,116.93,"0,00 %",Altri interventi terminal
BLQ-EDI306,Approvato,24/11/2017,SAB Spa,Ampliamento uffici SAB - Appalto lavori,675653.65,503002.83,30/03/2018,31/12/2018,598041.36,100,100,118.89,"0,00 %",Altri edifici
BLQ-EDI310,Approvato,01/08/2014,SAB Spa,Ampliamento sala arrivi Extra Schengen - Altre attivit�,10000,10000,04/08/2015,31/08/2016,166577.96,100,100,1665.78,"0,00 %",Altri interventi terminal
BLQ-EDI358,Approvato,13/07/2016,SAB Spa,Pontili d'imbarco aerostazione esistente - Appalto principale (incluse somme a disp.),436784.88,260728.7,,01/04/2016,260728.7,100,100,100,"0,00 %",Altri interventi terminal
BLQ-EDI359,Approvato,13/07/2016,SAB Spa,Pontili d'imbarco aerostazione esistente - Appalto impianti,347017.12,347017.12,,28/07/2017,347017.15,100,100,100,"0,00 %",Altri interventi terminal
BLQ-EDI49,Approvato,13/04/2012,SAB Spa,Riprotezione aeroclub,0,0,20/02/2013,30/06/2015,19302.5,100,100,0,"0,00 %",Altri edifici
BLQ-EDI57,Approvato,21/10/2013,SAB Spa,Riprotezione aree ENAV,914431.63,754431.63,30/12/2013,31/03/2017,858843.86,100,100,113.84,"0,00 %",Altri edifici
BLQ-INV304,Approvato,26/06/2018,SAB Spa,"Riqualifica p.a. - Interv, su via di rullaggio tra pk 0+990 e pk 1 +340",590000,455344.79,13/09/2018,31/12/2018,211908.93,100,100,46.54,"0,00 %",Piazzali
BLQ-INV314,Approvato,11/11/2013,SAB Spa,Riqualifica piazzale aeroclub - Appalto principale,4055434.06,3405034.06,16/02/2015,19/10/2016,3635285.81,100,100,106.76,"0,00 %",
BLQ-INV339,Approvato,19/05/2016,SAB Spa,Manutenzione straordinaria Taxiway sezione 4,1294371.68,1127319.27,18/04/2017,07/11/2017,1121680,100,100,99.5,"0,00 %",Pista
BLQ-INV385,Approvato,05/11/2018,SAB Spa,Interventi su pista di volo - Riqualificazione strutturale e funzionale raccordo G ,5536275.35,4871587.72,,31/12/2018,4019182.47,100,100,82.5,"0,00 %",Pista
BLQ-INV386,Approvato,08/05/2018,SAB Spa,Interventi su pista di volo - Opere propedeutiche riqualificazione strutturale e funz. raccordo G,485366.3,429506.3,02/07/2018,31/12/2018,429506.3,100,100,100,"0,00 %",Pista
BLQ-SEC362,Approvato,14/09/2017,SAB Spa,Altri interv. area security - Videosorv. recinz. perim.: Prog. Sistema Radar,503318.71,491889.13,08/08/2018,31/12/2018,428231.75,100,100,87.06,"0,00 %",Rete e impianti
BLQ-SEC363,Approvato,05/07/2018,SAB Spa,Altri interv. area security - Videosorv. recinz. perim.: Allacciamenti,153985.32,141500,08/08/2018,30/11/2018,141500,100,100,100,"0,00 %",Security
BLQ-STR329,Approvato,18/07/2017,SAB Spa,Nuova viabilit� perimetrale - Zona nord,444999.75,379999.75,14/02/2018,30/11/2018,340289.78,100,100,89.55,"0,00 %","Strade, pertinenze e viadotti"
BLQ-STR361,Approvato,15/03/2017,SAB Spa,People Mover - Passerella,1276489.4,880745.16,14/05/2018,31/12/2018,439511.73,100,100,49.9,"0,00 %","Strade, pertinenze e viadotti"
BRI-AVL5,Approvato,10/03/2016,Aeroporti di Puglia Spa,Impianti AVL,4502368.26,3374527.36,05/08/2016,23/10/2018,258042.99,65,65,7.65,"100,00 %",
BRI-INV3,Approvato,14/08/2014,Aeroporti di Puglia Spa,Adeguamento infrastrutture di volo e prolungamento pista rwy 07/25 (adeguamento RESA),9965766.25,5640347.22,17/10/2014,23/10/2018,1089320.57,30,30,19.31,"100,00 %",
BRI-INV4,Approvato,19/12/2014,Aeroporti di Puglia Spa,Riqualifica Raccordi C e D e piazzale esistente,4666661.33,4413750.59,13/03/2015,11/07/2017,2890967.46,96,96,65.5,"100,00 %",
CAG-ALT197,Approvato,06/04/2018,SOGAER Spa,TRATTAMENTO PAVIMENTAZIONI CON BIOSSIDO DI TITANIO,139500.57,139500.57,19/04/2019,03/12/2018,139500.57,100,100,100,"0,00 %",Piazzali
CAG-ALT216,Approvato,02/05/2018,SOGAER Spa,Acquisizione interventi Santa Caterina,3996531.78,3996531.78,20/06/2018,22/10/2018,3599408.68,100,100,90.06,"86,60 %",Piazzali
CAG-EDI157,Approvato,10/06/2014,SOGAER Spa,ADEGUAMENTO GATES E PERCORSI NEL TERMINAL-Automazione ingressi Terminal,203591.19,183460.4,05/09/2014,30/01/2017,183460.4,100,100,100,"100,00 %",Altri interventi terminal
CAG-EDI264,Approvato,21/10/2016,SOGAER Spa,Lavori percorso pedonale di collegamento tra aerostazionee stazione FS,32157.02,32157.02,15/11/2016,04/08/2017,33784.31,100,100,105.06,"0,00 %",Altri edifici
CAG-EDI265,Approvato,20/02/2017,SOGAER Spa,Lavori  di ristrutturazione conservativa del fabbricato ex militare PG-42,0,0,22/05/2017,19/12/2017,67788.16,100,100,0,"0,00 %",Altri edifici
CAG-EDI283,Approvato,28/07/2017,SOGAER Spa, Ripristino di parte delle coperture degli stabili ex Aeronautica Militare ,97511,97511,13/03/2018,09/10/2018,257996.74,100,100,264.58,"0,00 %",Altri edifici
CAG-INV126,Approvato,07/06/2016,SOGAER Spa,_Piazzali VVF e trasformazione tratto T,2035274.33,1841221.59,12/06/2016,02/08/2018,2310887.04,100,100,125.51,"50,14 %",Piazzali
CAG-INV230,Approvato,06/08/2015,SOGAER Spa,PIAZZALI SUD,3002173.58,3002173.58,04/09/2015,29/12/2016,164569.71,100,100,5.48,"0,00 %",Piazzali
CAG-INV284,Approvato,02/05/2018,SOGAER Spa,Piazzali Nord_Aree Rampa_Illuminazione piazzali_Viabilit� e prk_Parcheggi operatori,6437343.99,5270424.71,20/06/2018,31/12/2018,3661122.52,62.7,62.7,69.47,"86,60 %",Piazzali
CAG-INV287,Approvato,11/01/2018,SOGAER Spa,Ripristino pavimentazione tw Foxtrot,44888.54,44888.54,12/01/2018,26/03/2018,44888.54,100,100,100,"0,00 %",Pista
CAG-INV289,Approvato,20/02/2018,SOGAER Spa,Allargamento carreggiata mezzi operativi,72292.49,72292.49,02/07/2018,12/10/2018,111698.11,100,100,154.51,"0,00 %",Piazzali
CAG-INV296,Approvato,05/09/2018,SOGAER Spa,Riqualificazione tratto twy Tango con incremento prestazioni meccaniche ,45935.08,42795.31,18/04/2019,03/10/2018,53247.66,100,100,124.42,"0,00 %",Piazzali
CAG-NET131,Approvato,29/07/2011,SOGAER Spa,ADEGUAMENTO IMPIANTI ILLUMINAZIONE CON TECNOLOGIE  E RISPARMIO ENRGETICO,73456,73456,28/12/2011,16/11/2017,73456,100,100,100,"0,00 %",Rete e impianti
CAG-NET135,Approvato,08/09/2017,SOGAER Spa,IMPIANTO DE-ICING E CAPTAZIONE REFLUI,162347.92,123846.68,12/03/2018,23/11/2018,123846.69,100,100,100,"100,00 %",Rete e impianti
CAG-NET156,Approvato,29/08/2013,SOGAER Spa,AMPLIAMENTO CAPACITA' SISTEMA RESTITUZIONE BAGAGLI ARRIVI,857348.58,789794.94,02/10/2013,28/02/2018,821728.44,100,100,104.04,"100,00 %",Rete e impianti
CAG-NET166,Approvato,08/09/2017,SOGAER Spa,IMPIANTI IGIENICI CON SISTEMI A RISPARMIO IDRICO/ENERGETICO ,95770.28,91103.65,22/12/2017,14/08/2018,91103.69,100,100,100,"0,00 %",Rete e impianti
CAG-NET175,Approvato,13/05/2014,SOGAER Spa,ADEGUAMENTO A USO PUBBLICO ASCENSORI E SCALE MOBILI NEL TERMINAL_,72320.73,28817,19/06/2014,21/12/2017,28817,60,60,100,"0,00 %",Rete e impianti
CAG-NET203,Approvato,22/05/2014,SOGAER Spa,RISTRUTTURAZIONE RETE SERVIZI IDRICI TELEFONICI FOGNARI ED ELETTRICI LATO OVEST,920461.36,835785.85,19/06/2014,28/12/2018,506620.47,100,100,60.62,"100,00 %",Rete e impianti
CAG-NET268,Approvato,23/03/2015,SOGAER Spa,FORNITURA APPARATI 400HZ,750360,750360,19/08/2015,29/12/2017,750360,100,100,100,"100,00 %",Rete e impianti
CAG-NET269,Approvato,24/03/2015,SOGAER Spa,Lavori  realizzazione impianto 400HZ,618730.85,538801.18,19/08/2015,01/06/2018,538802,100,100,100,"100,00 %",Rete e impianti
CAG-NET280,Approvato,19/09/2016,SOGAER Spa,Fornitura sistema di controllo accessi,449999.85,449999.85,01/02/2017,19/04/2018,441825.29,100,100,98.18,"0,00 %",Rete e impianti
CAG-NET281,Approvato,19/09/2016,SOGAER Spa,Lavori di manutenzione straordinaria piazzale land side ,564987.98,564987.98,01/02/2017,30/04/2018,565647.99,80.16,80.16,100.12,"0,00 %",
CAG-NET282,Approvato,15/12/2016,SOGAER Spa,Lavori integrativi impianto scolo acque meteoriche,197855.67,197855.67,03/02/2017,26/02/2018,197855.13,100,100,100,"0,00 %",Rete e impianti
CAG-NET297,Approvato,28/11/2017,SOGAER Spa,Trattamento terziario depurazione acque e modifica impianto irrigazione land-side,66050.15,55550.15,28/05/2018,12/10/2018,55550.15,100,100,100,"0,00 %",Rete e impianti
CAG-PRK278,Approvato,30/07/2014,SOGAER Spa,Parcheggio operatori Sud - I�Stralcio,248920.09,212123.74,04/09/2014,04/07/2016,194279.07,100,100,91.59,"0,00 %",Parcheggi
CAG-SEC140,Approvato,24/08/2016,SOGAER Spa,INTEGRAZIONE IMPIANTO ALLARME PERIMETRALE AREA OVEST,707207.7,649721.62,27/10/2016,19/12/2017,649721.36,100,100,100,"65,83 %",Rete e impianti
CAG-SEC204,Approvato,03/07/2017,SOGAER Spa,INTEGRAZIONE ALLA NUOVA NORMATIVA RADIOGENI 1-2-3�livello- STANDARD 3 e IMPIANTO BRS,30447.23,30447.23,18/12/2017,26/04/2018,30447.25,100,100,100,"0,00 %",Security
CIA-ALT30,Approvato,27/05/2016,AdR Spa,ADEG.IMPIANTI ANTINCENDIO -TERMINAL (anno 2017),778111.13,588011.85,03/12/2018,31/12/2017,465716.19,100,100,79.2,"0,00 %",
CIA-ALT36,Approvato,21/11/2017,AdR Spa,PMS 2017 CONF C.9,4445951,4445951,24/10/2018,31/12/2018,4867132.04,100,100,109.47,"0,00 %",
CIA-ALT38,Approvato,21/11/2017,AdR Spa,PMS 2017 - CONF C.6,190197,190197,24/10/2018,31/12/2018,271594.34,100,100,142.8,"0,00 %",
CIA-EDI12,Approvato,27/04/2016,AdR Spa,RIQUALIFICA AEROSTAZIONE GENERALE,2415608.96,2415608.96,13/05/2016,18/02/2017,2415608.96,100,100,100,"0,00 %",
CIA-EDI39,Approvato,21/11/2017,AdR Spa,PMS 2017 - CONF C.7,670739,670739,24/10/2018,31/12/2018,880187.15,100,100,131.23,"0,00 %",
CIA-EDI45,Approvato,04/07/2018,AdR Spa,PUA 2018-2019 - C.9 ,1181119,1181119,24/01/2019,31/12/2018,632885.77,50,50,53.58,"0,00 %",PUA - Piano Utilizzo Aerostazione
CIA-EDI7,Approvato,28/10/2016,AdR Spa,MANUTENZIONI STRAORDINARIE CIA,11972504,11972504,17/10/2017,31/12/2016,11884648.53,100,100,99.27,"0,00 %",
CIA-INV10,Approvato,06/04/2016,AdR Spa,RIQUALIFICA SISTEMA AIRSIDE: PISTA,10037693.21,8636502.78,06/04/2016,31/12/2016,8442338.87,100,100,97.75,"0,00 %",
CIA-INV21,Approvato,07/02/2017,AdR Spa,"RIQUALIFICA STAND 100, 200, 300, SB, SD, TC",8114049.32,6565180.29,31/05/2018,31/12/2018,7332548.89,73,73,111.69,"0,00 %",
CIA-INV22,Approvato,03/08/2017,AdR Spa,"RIQUALIFICA STAND 400, 500",2915610.66,2516246.35,19/09/2017,25/06/2018,2290609.85,100,100,91.03,"0,00 %",
CIA-INV37,Approvato,21/11/2017,AdR Spa,PMS 2017 - CONF C.1,360000,360000,24/10/2018,31/12/2018,329561.89,100,100,91.54,"0,00 %",
CIA-INV9,Approvato,01/09/2013,AdR Spa,ADEGUAMENTO PORTANZA POZZETTI STRIP CIA - SECONDA FASE,675293.93,655293.93,28/10/2015,29/10/2016,757732.46,100,100,115.63,"0,00 %",
CIA-MAN42,Approvato,15/03/2019,AdR Spa,PMS 2018 - C.9,4622634.67,4622634.67,21/06/2019,31/12/2018,3362304.58,100,100,72.74,"0,00 %",PMS - Piano Man. Straord.
CTA-EDI354,Approvato,10/01/2017,SAC Spa,Conversione del centro polifunzionale agroalimentare e turistico in terminal C partenze,1089200.63,991076.4,24/03/2017,29/06/2018,991076.41,100,100,100,"0,00 %",Altri interventi terminal
CTA-INV363,Approvato,22/08/2014,SAC Spa,"Realizzazione recinzione area Disoleatori lato testata ""26""",106122.63,80726.89,31/10/2014,13/03/2017,80726.9,100,100,100,"0,00 %",Recinzioni
CTA-NET439,Approvato,26/05/2017,SAC Spa,Fornitura linea trasporto nastri bagagli di n. 5 Nuovi Banchi Check-In e Spostamento Biglietterie,130000,130000,26/05/2017,02/02/2018,130000,100,100,100,"0,00 %",Rete e impianti
CTA-NET440,Approvato,26/05/2017,SAC Spa,Fornitura e posa di n. 5 Nuovi Banchi Check-In e Spostamento Biglietterie ,137000,137000,26/05/2017,03/10/2017,137000,100,100,100,"0,00 %",Rete e impianti
CTA-PRK414,Approvato,29/09/2015,SAC Spa,DEMOLIZIONE UFFICI RENT A CAR E REALIZZAZIONE NUOVO PARCHEGGIO AUTO E MINIBUS,342948.33,282989.55,20/11/2015,19/05/2017,282989.55,1,1,100,"0,00 %",Parcheggi
FCO-ALT104,Approvato,11/12/2014,AdR Spa,STAKED PALLETS PER STOCCAGGIO ULD AREA OVEST,1844590.76,1824590.76,02/12/2015,31/01/2017,1912621.44,100,100,104.82,"0,00 %",
FCO-ALT242,Approvato,22/11/2017,AdR Spa,PMS 2017 CONF 6.1,2956355,2956355,01/08/2018,31/12/2018,3466323.75,100,100,117.25,"0,00 %",
FCO-ALT253,Approvato,22/11/2017,AdR Spa,PMS 2017 CONF 6.2.6,686477,686477,01/08/2018,31/12/2018,792267.76,100,100,115.41,"0,00 %",
FCO-AVL195,Approvato,15/11/2016,AdR Spa,PISTE e PIAZZALI: REVISIONE e RIQUALIFICA IMPIANTI ELETTRICI,588271.65,558271.65,18/07/2017,30/07/2018,541198.35,100,100,96.94,"0,00 %",
FCO-AVL204,Approvato,15/03/2019,AdR Spa,RIQUALIFICA AMPL. CAVIDOTTO TAXIWAY A E PISTA 3,1452069.2,1135750.04,21/06/2019,28/06/2018,223542.66,82,82,19.68,"0,00 %",
FCO-AVL207,Approvato,12/10/2016,AdR Spa,MONITOR.SISTEMA E SINGOLA LAMPADA AVL,3853420.36,3604989.95,03/03/2017,30/11/2018,3313153.84,100,100,91.9,"0,00 %",
FCO-AVL219,Approvato,20/12/2016,AdR Spa,Sostituzione / revamping torri faro - LOTTO I,2430041.47,2290282.2,19/07/2017,31/12/2018,2324242.22,100,100,101.48,"0,00 %",
FCO-AVL220,Approvato,07/02/2018,AdR Spa,Sostituzione / revamping torri faro - LOTTO II,2067353.12,1745178.35,30/05/2018,19/12/2018,104483.85,66,66,5.99,"0,00 %",
FCO-EDI10,Approvato,01/01/2013,AdR Spa,RISTRUTT. SERVIZI IGIENICI NEI TERMINAL,295651,295651,10/11/2015,30/09/2015,295651,100,100,100,"0,00 %",
FCO-EDI100,Approvato,23/12/2015,AdR Spa,T3 - RIQUALIFICA AREA IMMIGRATION - LOTTO 2,3023467.41,2780087.41,05/05/2015,31/08/2016,2519026.76,62,62,90.61,"0,00 %",
FCO-EDI136,Approvato,24/03/2015,AdR Spa,PALAZZINA DIREZIONALE NUOVA SEDE ADR,9450505.09,9450505.09,30/06/2015,17/03/2018,9597172.49,98,98,101.55,"0,00 %",
FCO-EDI171,Approvato,25/05/2017,AdR Spa,"LOTTO 1 - MOLO, AVANCORPO, ADEGUAMENTO INTERNO T1",163642492.58,127798644,27/07/2017,31/12/2018,19293586.85,42,42,15.1,"0,00 %",
FCO-EDI181,Approvato,16/06/2016,AdR Spa,AREA DI IMBARCO F E AVANCORPO T3,322287600.94,307294245.13,,20/04/2017,306869183.08,100,100,99.86,"20,28 %",
FCO-EDI184,Approvato,17/11/2016,AdR Spa,"BANCHI GATES, INFO E TRANSITI",5514021.01,1700970.42,,03/04/2017,1700080.89,100,100,99.95,"0,00 %",
FCO-EDI193,Approvato,27/10/2016,AdR Spa,NUOVA SEGNALETICA AL PASSEGGERO,1569198.67,1359198.67,01/02/2017,29/12/2017,1411524.83,100,100,103.85,"0,00 %",
FCO-EDI229,Approvato,19/07/2017,AdR Spa,LOTTO 2 - ADEGUAMENTO IMPIANTISTICO AIC - OPERE CIVILI,2347816.64,1588054.14,28/09/2017,25/10/2018,1722879.14,100,100,108.49,"0,00 %",
FCO-EDI230,Approvato,19/07/2017,AdR Spa,LOTTO 2 - ADEGUAMENTO IMPIANTISTICO AIC - IMPIANTI,3832884.51,2566540.92,28/09/2017,13/12/2018,2605971.02,100,100,101.54,"0,00 %",
FCO-EDI231,Approvato,19/07/2017,AdR Spa,LOTTO 2 - DEMOLIZIONE TERMINAL 2,2267306.3,1256820.55,27/09/2017,08/12/2018,1346541.52,100,100,107.14,"0,00 %",
FCO-EDI232,Approvato,23/12/2016,AdR Spa,PUA 2017-2018 - 6.1 (attivit 2017),4043880,4043880,27/07/2017,31/12/2018,4379233.91,100,100,108.29,"0,00 %",
FCO-EDI234,Approvato,23/12/2016,AdR Spa,PUA 2017-2018 - 3.3 (attivit 2017),514719,514719,27/07/2017,31/12/2018,928168.92,100,100,180.33,"0,00 %",
FCO-EDI237,Approvato,22/11/2017,AdR Spa,Area Kilo riqualificazione spogliatoio,623909.7,505364.16,01/08/2018,10/10/2017,505293.87,100,100,99.99,"0,00 %",
FCO-EDI241,Approvato,22/11/2017,AdR Spa,T3: Riqualifica messa in sicurezza controsoffitti partenze,1466501.98,1019557.64,01/08/2018,31/12/2018,775819.6,96,96,76.09,"0,00 %",
FCO-EDI243,Approvato,22/11/2017,AdR Spa,PMS 2017 CONF 3.7,2339410,2339410,01/08/2018,01/01/2017,2327034.9,100,100,99.47,"0,00 %",
FCO-EDI244,Approvato,22/11/2017,AdR Spa,PMS 2017 CONF 3.13,397133,397133,01/08/2018,31/12/2017,397133.83,100,100,100,"0,00 %",
FCO-EDI245,Approvato,22/11/2017,AdR Spa,PMS 2017 CONF 3.3,58424,58424,01/08/2018,01/01/2017,58422.74,100,100,100,"0,00 %",
FCO-EDI249,Approvato,22/11/2017,AdR Spa,PMS 2017 CONF 6.2.4,17791261,17791261,01/08/2018,31/12/2018,20814596.07,100,100,116.99,"0,00 %",
FCO-EDI255,Approvato,23/12/2016,AdR Spa,PUA CONF 7.2,471489,471489,27/07/2017,31/12/2017,471489,100,100,100,"0,00 %",
FCO-EDI256,Approvato,23/12/2016,AdR Spa,PUA 2017/18 CONF 3.4 (attivit 2017),782515,782515,27/07/2017,31/12/2018,807794.14,100,100,103.23,"0,00 %",
FCO-EDI260,Approvato,23/12/2016,AdR Spa,PUA2017-18 CONF 6.2.4 ,546062,546062,27/07/2017,31/12/2017,546061.71,100,100,100,"0,00 %",
FCO-EDI261,Approvato,23/12/2016,AdR Spa,Nuovi gate area imbarco B q.ta 2,1212935.57,818237.75,27/07/2017,13/09/2017,817907.19,100,100,99.96,"0,00 %",
FCO-EDI264,Approvato,30/07/2018,AdR Spa,ADEGUAMENTI ANTINCENDIO AREA IMBARCO G,350525.49,219036.08,15/11/2018,31/12/2018,19989.77,8,8,9.13,"0,00 %",
FCO-EDI267,Approvato,23/12/2016,AdR Spa,PUA 2017-2018 - 3.3 (attivit 2018),1993810,1993810,27/07/2017,31/12/2018,1395667.46,100,100,70,"0,00 %",PUA - Piano Utilizzo Aerostazione
FCO-EDI268,Approvato,23/12/2016,AdR Spa,PUA 2017-2018 - 6.1 (attivit 2018),3422834.29,3422834.29,27/07/2017,31/12/2018,2395984.45,100,100,70,"0,00 %",PUA - Piano Utilizzo Aerostazione
FCO-EDI27,Approvato,28/10/2016,AdR Spa,MAN. STRAOR. - IMP. ELETTRICI,0,0,17/10/2017,31/12/2016,17863498.57,100,100,0,"0,00 %",
FCO-EDI28,Approvato,28/10/2016,AdR Spa,MAN. STRAOR. - IMP. CONDIZ. E IDRAULICI,0,0,17/10/2017,31/12/2016,5675233.43,100,100,0,"0,00 %",
FCO-EDI283,Approvato,15/03/2019,AdR Spa,Lavori allineamento EPUA 2 ottenimento CPI,1197198.82,868598.15,21/06/2019,31/12/2018,34766.1,57,57,4,"0,00 %",
FCO-EDI29,Approvato,28/10/2016,AdR Spa,MAN. STRAOR. - IMP. ELETTROMECCANICI,13810289,13810289,17/10/2017,31/12/2016,13236688.46,100,100,95.85,"0,00 %",
FCO-EDI292,Approvato,23/12/2016,AdR Spa,NUOVO CBC PRESSO T1,2853650.91,1397619.71,27/07/2017,31/12/2018,1333187.19,61,61,95.39,"0,00 %",
FCO-EDI293,Approvato,22/11/2017,AdR Spa,RIPROTEZIONE MAGAZZINI E SPOGLIATOI AIC QUOTA 2,976420.33,651799.03,01/08/2018,10/02/2018,700380.34,100,100,107.45,"0,00 %",
FCO-EDI294,Approvato,23/12/2016,AdR Spa,Biglietterie mezzanino T3,2133837.85,900690.18,27/07/2017,31/07/2018,900571.14,100,100,99.99,"0,00 %",
FCO-EDI30,Approvato,28/10/2016,AdR Spa,MAN. STRAOR. - INFRASTRUTTURE CIVILI,25815849,25815849,17/10/2017,01/01/2016,26219354.44,100,100,101.56,"0,00 %",
FCO-EDI303,Approvato,23/12/2016,AdR Spa,PUA 2017-18 (anno 2018) conf. 3.4,90580.23,90580.23,27/07/2017,31/12/2018,63406,100,100,70,"0,00 %",PUA - Piano Utilizzo Aerostazione
FCO-EDI304,Approvato,23/12/2016,AdR Spa,PUA 2017-2018 conf 6.2.3 (attivit 2018),404660,404660,27/07/2017,31/12/2018,283262.02,100,100,70,"0,00 %",PUA - Piano Utilizzo Aerostazione
FCO-EDI31,Approvato,28/10/2016,AdR Spa,MAN. STRAOR. - IMP. SPECIALI E VARIE,3722007,3722007,17/10/2017,31/12/2016,3545100.71,100,100,95.25,"0,00 %",
FCO-EDI32,Approvato,28/10/2016,AdR Spa,INTERV PER L'ENERGY SAVING E FONTI ALT.,1185928,1185928,17/10/2017,31/12/2016,969932.87,100,100,81.79,"0,00 %",
FCO-EDI337,Approvato,23/12/2016,AdR Spa,PUA 2017-2018 conf 6.2.4 (attivit 2018),300192.86,300192.86,27/07/2017,31/12/2018,210134.88,100,100,70,"0,00 %",PUA - Piano Utilizzo Aerostazione
FCO-EDI63,Approvato,10/05/2014,AdR Spa,RIQUALIFICA MAGAZZINO CARGO E SUDDIVISIONE INTERNA: APPALTO PRINCIPALE,915392.57,865392.57,10/11/2015,30/09/2015,865393,100,100,100,"0,00 %",
FCO-EDI68,Approvato,20/11/1998,AdR Spa,AREA DI IMBARCO F E AVANCORPO T3: APPALTO PRINCIPALE,322287600.94,307294245.13,,31/12/2016,300278948.95,100,100,97.72,"22,69 %",
FCO-EDI74,Approvato,12/07/2016,AdR Spa,"BANCHI GATES, INFO E TRANSITI",1700970.43,1700970.42,,31/12/2016,1411824.85,67,67,83,"0,00 %",
FCO-EDI89,Approvato,01/08/2014,AdR Spa,NUOVA SEDE ADR - APPALTO PRINCIPALE,6642320.37,6642320.37,30/06/2015,30/06/2016,626350.35,57,57,9.43,"0,00 %",
FCO-EDI91,Approvato,07/01/2015,AdR Spa,NUOVE BIGLIETTERIE TERMINAL 3 - APPALTO PRINCIPALE,930417.58,883942.48,,07/09/2016,841321.9,100,100,95.18,"0,00 %",
FCO-EDI93,Approvato,01/04/2014,AdR Spa,ALTRI INTERVENTI DA PUA DIC-2014,0,0,05/05/2015,31/12/2016,8737033,100,100,0,"0,00 %",
FCO-EDI96,Approvato,05/08/2016,AdR Spa,T3 - RINFORZO STRUTTURALE TRAVE DI FACCIATA,385766.7,361766.7,14/09/2016,23/11/2016,386328.25,100,100,106.79,"0,00 %",
FCO-EDI97,Approvato,02/07/2015,AdR Spa,T3 - RIPROTEZIONE SCALA DI COLLEGAMENTO,465080.32,436682.82,06/04/2016,31/12/2016,414520.6,89,89,94.92,"0,00 %",
FCO-EDI98,Approvato,05/08/2016,AdR Spa,T3 - SOSTITUZIONE SERRAMENTO DI FACCIATA,4928250.87,4742102.41,14/09/2016,17/12/2016,5644409.18,100,100,119.03,"0,00 %",
FCO-EDI99,Approvato,23/12/2015,AdR Spa,T3 - RIQUALIFICA AREA IMMIGRATION - LOTTO 1,861062.17,797942.17,05/05/2015,30/11/2016,634562.28,90,90,79.52,"0,00 %",
FCO-FNC227,Approvato,12/10/2016,AdR Spa,IMPIANTO DI PROTEZIONE PERIMETRALE - OPERE CIVILI,1310804.77,1181804.77,25/01/2017,31/10/2017,1432620.11,100,100,121.22,"0,00 %",
FCO-FNC228,Approvato,12/10/2016,AdR Spa,IMPIANTO DI PROTEZIONE PERIMETRALE - OPERE IMPIANTISTICHE,4843786.72,4613786.72,31/01/2017,24/04/2018,4613598.32,100,100,100,"0,00 %",
FCO-INV11,Approvato,01/04/2015,AdR Spa,AREA OVEST - AMPLIAMENTO PIAZZALI SOSTA AEROMOBILI - PRIMA FASE,30257450.72,26032933.23,02/12/2015,31/12/2016,8177030.69,47,47,31.41,"0,00 %",
FCO-INV113,Approvato,01/04/2015,AdR Spa,AREA OVEST - AMPLIAMENTO PIAZZALI SOSTA AEROMOBILI 1^FASE,30257450.72,26032933.23,02/12/2015,31/12/2017,26509849.35,100,100,101.83,"0,00 %",
FCO-INV114,Approvato,22/02/2017,AdR Spa,AREA OVEST - AMPLIAMENTO PIAZZALI SOSTA AEROMOBILI 2^FASE,24718666.11,20716755.19,19/06/2017,31/12/2018,16392075.26,83,83,79.12,"0,00 %",
FCO-INV148,Approvato,07/10/2016,AdR Spa,RIQUALIFICA PISTA 16R/34L,8349149.65,7080470,16/12/2016,31/03/2017,6934968.84,100,100,97.95,"0,00 %",
FCO-INV170,Approvato,23/12/2015,AdR Spa,LOTTO 1 - PIAZZALI 300,13583666.37,13583666.37,18/07/2016,31/12/2018,10037378.59,93,93,73.89,"0,00 %",
FCO-INV186,Approvato,23/09/2016,AdR Spa,RIQUALIFICA VIA DI RULLAGGIO A pr. +1437 +1871,679983.99,568897.29,13/12/2016,23/02/2017,565987.72,100,100,99.49,"0,00 %",
FCO-INV213,Approvato,08/02/2016,AdR Spa,Molo C - Adeguamento TWY M,1213175.42,1126375.4,29/09/2016,31/05/2018,1126374.68,92.35,92.35,100,"0,00 %",
FCO-INV257,Approvato,09/11/2016,AdR Spa,Riconfigurazione a codice E Via di Rullaggio S,380639.81,311257.14,02/12/2016,31/03/2017,330204.94,100,100,106.09,"0,00 %",
FCO-INV44,Approvato,01/05/2011,AdR Spa,RIQUALIFICA PISTA 3 - APPALTO PRINCIPALE,67083183.87,64283183.87,23/07/2014,25/11/2015,64275305.36,100,100,99.99,"0,00 %",
FCO-INV45,Approvato,01/05/2011,AdR Spa,RIQUALIFICA PISTA 3 - ALTRE ATTIVITA',0,0,10/11/2015,31/12/2015,2927184,100,100,0,"0,00 %",
FCO-INV48,Approvato,01/07/2011,AdR Spa,ADEGUAMENTO STRIP 16C/34C - APPALTO PRINCIPALE,903245.8,903245.8,04/10/2013,10/03/2015,903245.8,100,100,100,"0,00 %",
FCO-INV50,Approvato,01/06/2007,AdR Spa,PISTA 2/TWY INDIA - RIQUALIFICA E NORMATIVA - APPALTO PRINCIPALE,20605306.23,20605306.23,,31/12/2014,20588822.4,100,100,99.92,"0,00 %",
FCO-INV52,Approvato,01/04/2013,AdR Spa,REAL. PIAZZOLA DE-ICING - APPALTO PRINCIPALE,4081773.29,4014473.29,09/06/2014,15/01/2016,4014472.83,100,100,100,"0,00 %",
FCO-INV54,Approvato,01/04/2010,AdR Spa,HUB EST - PIAZZALI 200 - APPALTO PRINCIPALE,19321523.43,19121523.43,28/04/2015,29/06/2016,19121390.66,100,100,100,"0,00 %",
FCO-INV87,Approvato,01/09/2010,AdR Spa,MAN. STR. - PISTE VOLO NUOVA RETE EL. - APPALTO PRINCIPALE,20590756.69,18809020.59,28/11/2014,30/09/2016,5895638.25,53,53,31.34,"0,00 %",
FCO-MAN269,Approvato,15/03/2019,AdR Spa,PMS2018 CONF 6.2.1 ,5808645.25,5808645.25,21/06/2019,31/12/2018,1686673.25,100,100,29.04,"0,00 %",PMS - Piano Man. Straord.
FCO-MAN270,Approvato,15/03/2019,AdR Spa,PMS 2018 CONF. 6.2.2,7933318.17,7933318.17,21/06/2019,31/12/2018,2971397.73,100,100,37.45,"0,00 %",PMS - Piano Man. Straord.
FCO-MAN271,Approvato,15/03/2019,AdR Spa,PMS 2018 CONF. 6.2.4,24202766.73,24202766.73,21/06/2019,31/12/2018,9348833.59,100,100,38.63,"0,00 %",PMS - Piano Man. Straord.
FCO-MAN272,Approvato,15/03/2019,AdR Spa,PMS 2018 CONF. 6.2.3,4592201.84,4592201.84,21/06/2019,31/12/2018,2596902.05,100,100,56.55,"0,00 %",PMS - Piano Man. Straord.
FCO-MAN273,Approvato,15/03/2019,AdR Spa,PMS 2018 CONF. 6.2.5,3122349.83,3122349.83,21/06/2019,31/12/2018,1018794.56,100,100,32.63,"0,00 %",PMS - Piano Man. Straord.
FCO-MAN274,Approvato,15/03/2019,AdR Spa,PMS 2018 CONF 6.2.6,1220938.61,1220938.61,21/06/2019,31/12/2018,706803.37,100,100,57.89,"0,00 %",PMS - Piano Man. Straord.
FCO-MAN282,Approvato,15/03/2019,AdR Spa,Sostituzione centrali rilevazione incendi e relativi elementi installati in campo,1319571.41,1033168.66,21/06/2019,31/08/2018,982367.94,87,87,95.08,"0,00 %",PMS - Piano Man. Straord.
FCO-MAN286,Approvato,15/03/2019,AdR Spa,PMS 2018 CONF 6.1,12450335.96,12450335.96,21/06/2019,31/12/2018,4298296.31,100,100,34.52,"0,00 %",PMS - Piano Man. Straord.
FCO-MAN287,Approvato,15/03/2019,AdR Spa,PMS 2018 CONF 3.3 ,1045000,1045000,21/06/2019,31/12/2018,450530.27,100,100,43.11,"0,00 %",PMS - Piano Man. Straord.
FCO-NET107,Approvato,11/11/2015,AdR Spa,POTENZIAMENTO ANELLO ELETTRICO AIF,914249.72,722999.72,21/12/2015,15/12/2016,722950.57,100,100,99.99,"0,00 %",
FCO-NET108,Approvato,08/02/2016,AdR Spa,FORNITURA E POSA IN OPERA IMPIANTI DI PRECONDIZIONAMENTO PIAZZALI 200,3291700.93,2905002.03,04/05/2016,31/12/2016,2904693.5,100,100,99.99,"0,00 %",
FCO-NET15,Approvato,04/12/2015,AdR Spa,MAN. STRAORDINARIA - CABINA AT/MT,13067050.73,11957751.72,19/01/2016,31/12/2016,735016.81,60,56,6.15,"0,00 %",
FCO-NET180,Approvato,13/05/2015,AdR Spa,PONTILI TELESCOPICI E IMPIANTI DI PIAZZALE,13909801.31,11955196.08,14/09/2015,30/11/2017,12492439.17,100,100,104.49,"0,00 %",
FCO-NET238,Approvato,22/11/2017,AdR Spa,T1 SOS Centrali Trattamento aria 5-6-7-8-9 ,1271656.77,963781.77,01/08/2018,30/11/2018,860203.35,92,92,89.25,"0,00 %",
FCO-NET239,Approvato,22/11/2017,AdR Spa,BHS Area Imbarco E - Adeguamento caroselli,2564599.22,2395049.22,01/08/2018,05/09/2017,2395049.22,100,100,100,"0,00 %",
FCO-NET247,Approvato,22/11/2017,AdR Spa,PMS 2017 CONF 6.2.2,4835672,4835672,01/08/2018,31/12/2018,6699127.07,100,100,138.54,"0,00 %",
FCO-NET248,Approvato,22/11/2017,AdR Spa,PMS 2017 CONF 6.2.3,5566333,5566333,01/08/2018,31/12/2018,7574256.3,100,100,136.07,"0,00 %",
FCO-NET251,Approvato,22/11/2017,AdR Spa,PMS 2017 CONF 6.2.1,3704456,3704456,01/08/2018,31/12/2018,6035542.92,100,100,162.93,"0,00 %",
FCO-NET252,Approvato,22/11/2017,AdR Spa,PMS 2017 CONF 6.2.5,3766238,3766238,01/08/2018,31/12/2018,4358458.37,100,100,115.72,"0,00 %",
FCO-NET279,Approvato,15/03/2019,AdR Spa,T1-Sostituz. Gruppi Frigo in Centrale,1676024.94,1558626.93,21/06/2019,31/08/2018,716669.91,33,33,45.98,"0,00 %",
FCO-NET46,Approvato,01/01/2010,AdR Spa,RICONVERSIONE CARGO AZ PER BHS/HBS - APPALTO PRINCIPALE,46221899.24,46221899.24,27/11/2012,27/12/2016,46221899.24,100,100,100,"0,00 %",
FCO-NET66,Approvato,01/06/2012,AdR Spa,IMPIANTI DI DISOLEAZIONE PISTE 1 E 2: APPALTO PRINCIPALE,3453942.3,3453942.3,13/08/2014,30/09/2015,3453942.3,100,100,100,"0,00 %",
FCO-NET67,Approvato,01/06/2012,AdR Spa,IMPIANTI DI DISOLEAZIONE PISTE 1 E 2: ALTRE ATTIVITA',0,0,13/08/2014,31/12/2015,174765,100,100,0,"0,00 %",
FCO-NET70,Approvato,01/04/2014,AdR Spa,ISOLA SMART GRID,0,0,30/03/2015,31/12/2015,302371,100,100,0,"0,00 %",
FCO-NET71,Approvato,28/07/2015,AdR Spa,PONTILI TELESCOPICI E IMPIANTI DI PIAZZALE,13909801.31,11955196.08,14/09/2015,31/05/2017,12362774.69,79.45,79.45,103.41,"0,00 %",
FCO-PRK222,Approvato,23/11/2016,AdR Spa,FONDI PRIVATI - SOPRAELEVAZIONE PARCHEGGIO PR8,1196643.17,1117453,26/06/2017,24/06/2017,1117366.97,100,100,99.99,"0,00 %",
FCO-STR233,Approvato,16/10/2017,AdR Spa,RIQUALIF. BARRIERE METALLICHE BORDO PONTE VIA DE BERNARDI,2103321.91,1659744.64,06/02/2018,31/12/2018,340940.82,48,48,20.54,"0,00 %",
FCO-STR58,Approvato,01/07/2014,AdR Spa,RIFACIMENTO VIABILITA' ARRIVI E PARTENZE: VIABILITA' PARTENZE,585451.32,581515.12,10/11/2015,04/01/2016,581479.78,100,100,99.99,"0,00 %",
FCO-STR59,Approvato,01/07/2014,AdR Spa,RIFACIMENTO VIABILITA' ARRIVI E PARTENZE: VIABILITA' ARRIVI,2671146.19,2650915.67,05/03/2015,20/04/2016,2650830.51,100,100,100,"0,00 %",
FCO-STR60,Approvato,01/07/2014,AdR Spa,RIFACIMENTO VIABILITA' ARRIVI E PARTENZE: PASSEGGIATA ARRIVI E POLO BUS,650863.85,593348.31,06/03/2015,10/02/2016,593208,100,100,99.98,"0,00 %",
FCO-STR84,Approvato,01/07/2014,AdR Spa,RIFACIMENTO VIABILITA' ARRIVI E PARTENZE: ILLUMINAZIONE STRADALE,1612317.02,1600334.52,05/03/2015,29/12/2016,1599689.76,100,100,99.96,"0,00 %",
FLR-ALT83,Approvato,13/11/2018,AdF S.p.A.,Manutenzione straordinaria (PM),1838055,1838055,23/10/2019,31/12/2018,1072711.83,100,100,58.36,"0,00 %",PMS - Piano Man. Straord.
FLR-EDI124,Approvato,19/12/2015,AdF S.p.A.,Riprotezione uffici Enti di Stato,730087.98,579747.33,30/04/2015,31/12/2016,579747.34,100,100,100,"0,00 %",Altri interventi terminal
FLR-EDI126,Approvato,21/03/2017,AdF S.p.A.,Ampliamento sala Vip e ristrutturazione corridoio,879779.91,466711.5,06/04/2017,05/01/2018,471900.5,50,50,101.11,"0,00 %",Altri interventi terminal
FLR-EDI13,Approvato,23/06/2015,AdF S.p.A.,"Riconfigurazione flussi passeggeri 2.1, 2.4, 2.6, 2.9, 2.10",5545183.44,4997183.44,,18/07/2018,5492725.3,20.68,20.68,109.92,"0,00 %",PMS - Piano Man. Straord.
FLR-EDI14,Approvato,20/07/2015,AdF S.p.A.,Riconfigurazione/ Ampliamento sala imbarchi,624831.5,535600.31,30/04/2015,09/06/2016,535600.31,100,100,100,"0,00 %",PMS - Piano Man. Straord.
FLR-EDI15,Approvato,14/11/2012,AdF S.p.A.,Ampliamento Hall Arrivi,19119162.96,12873119.65,,22/06/2015,1011297.19,100,100,7.86,"0,00 %",Altri interventi terminal
FLR-EDI19,Approvato,02/01/2012,AdF S.p.A.,Ampliamento sala arrivi Extra-Schengen,72227.64,72227.64,31/07/2014,15/11/2015,387284.04,100,100,536.2,"0,00 %",Altri interventi terminal
FLR-EDI23,Approvato,26/06/2015,AdF S.p.A.,potenziamento dei sistemi di connessione verticale,428970.8,336918.25,30/04/2015,26/10/2016,394364.45,100,100,117.05,"0,00 %",PMS - Piano Man. Straord.
FLR-EDI73,Approvato,03/05/2013,AdF S.p.A.,Nuova centrale operativa Polizia di Stato (lavori),188750.96,148750.96,30/12/2014,26/01/2015,149871.54,100,100,100.75,"0,00 %",Altri interventi terminal
FLR-EDI74,Approvato,03/05/2013,AdF S.p.A.,Nuova centrale operativa Polizia di Stato (somme a disposizione ),24814.4,24814.4,31/12/2014,09/09/2014,24814.4,100,100,100,"0,00 %",Altri interventi terminal
FLR-INV27,Approvato,01/08/2016,AdF S.p.A.,Piazzale Aeromobili Apron 400,4748211.21,4303492.75,,20/05/2015,393427.1,100,100,9.14,"0,00 %",Piazzali
FLR-INV47,Approvato,11/11/2016,AdF S.p.A.,Riqulifica Piazzale aeromobili EST - Apron 100_Taxiway e Stands (PM),656745.41,563745.41,24/02/2017,31/05/2017,563745.41,100,100,100,"0,00 %",PMS - Piano Man. Straord.
FLR-INV48,Approvato,28/09/2017,AdF S.p.A.,Riqualifica pavimentazione piazzale OVEST Stands 200-300 e Taxiway (PM),670518.89,557439.26,23/01/2018,09/04/2018,544614.26,100,100,97.7,"0,00 %",PMS - Piano Man. Straord.
FLR-INV65,Approvato,25/02/2015,AdF S.p.A.,Nuovo Stand 107,348498.05,288498.05,11/06/2014,29/06/2015,288498.05,100,100,100,"0,00 %",Piazzali
FLR-INV67,Approvato,13/12/2013,AdF S.p.A.,Riconfigurazione segnaletica piazzale Est,159346.3,107554.3,19/03/2014,28/03/2014,107554.3,100,100,100,"0,00 %",Piazzali
FLR-INV68,Approvato,13/12/2013,AdF S.p.A.,Barriere Jet blast,57457.49,57457.49,19/03/2014,01/07/2015,57457.49,100,100,100,"0,00 %",Piazzali
FLR-NET31,Approvato,02/07/2012,AdF S.p.A.,Impianto trattamento acque di prima pioggia FIR1 e FIR 2,243447.25,6873.41,01/08/2013,03/01/2014,75859.7,100,100,1103.67,"0,00 %",Rete e impianti
FLR-NET56,Approvato,21/02/2014,AdF S.p.A.,Torri faro Piazzale Est e Ovest_Lotto 1,104218.74,59701.29,19/03/2014,03/10/2015,57412.36,100,100,96.17,"0,00 %",Piazzali
GOA-EDI81,Approvato,30/12/2016,Aeroporto di Genova S.p.A.,"Sostituzione porte girevoli - PM, 1 ",44000,44000,03/02/2017,31/03/2016,44000,100,100,100,"0,00 %",PMS - Piano Man. Straord.
GOA-EDI83,Approvato,30/12/2016,Aeroporto di Genova S.p.A.,"Riqualifica pontili - PM, 4",117348.3,117348.3,03/02/2017,31/05/2017,136075.4,100,100,115.96,"0,00 %",PMS - Piano Man. Straord.
GOA-EDI86,Approvato,27/09/2012,Aeroporto di Genova S.p.A.,RIQUALIFICA BAGNI PARTENZE - DA ENAC,76218.93,60018.93,11/12/2012,09/03/2015,60018.94,100,100,100,"0,00 %",Altri interventi terminal
GOA-EDI87,Approvato,21/01/2016,Aeroporto di Genova S.p.A.,Progettazione ristrutturazione servizi igienici area arrivi - PUA ,78216.58,68739.07,14/03/2017,30/09/2016,60527,100,100,88.05,"0,00 %",PUA - Piano Utilizzo Aerostazione
GOA-EDI88,Approvato,27/12/2016,Aeroporto di Genova S.p.A.,Realizzazione nuovo Lost & Found e Deposito - PUA ,30983,29983,14/03/2017,31/03/2016,49393,100,100,164.74,"0,00 %",PUA - Piano Utilizzo Aerostazione
GOA-EDI89,Approvato,27/12/2016,Aeroporto di Genova S.p.A.,Riqualifica e ampliamento Sala VIP e realizzazione nuova Sala Amica - PUA,59902.18,45509.26,14/03/2017,31/08/2017,82352.13,100,100,180.96,"0,00 %",PUA - Piano Utilizzo Aerostazione
GOA-EDI90,Approvato,15/04/2016,Aeroporto di Genova S.p.A.,Modifica e riqualifica del 2� piano (I e II fase) - PUA ,212758.7,136088.04,29/07/2016,08/06/2017,133638.43,100,100,98.2,"0,00 %",PUA - Piano Utilizzo Aerostazione
GOA-EDI91,Approvato,20/04/2016,Aeroporto di Genova S.p.A.,Adeguamento sistema mobilit� passeggeri in arrivo - PUA ,164825.13,105031.14,08/08/2016,21/12/2018,148100,100,100,141.01,"0,00 %",PUA - Piano Utilizzo Aerostazione
GOA-EDI92,Approvato,30/12/2016,Aeroporto di Genova S.p.A.,"Manutenzione straordinaria cucina e bagni distaccamento VVF - PM, 10",98356.17,98356.17,03/02/2016,30/09/2017,118600.17,100,100,120.58,"0,00 %",PMS - Piano Man. Straord.
GOA-EDI95,Approvato,30/12/2016,Aeroporto di Genova S.p.A.,"Manutenzione straordinaria coperture - PM, 13",31259.5,31259.5,03/02/2017,04/10/2017,31129.5,100,100,99.58,"0,00 %",PMS - Piano Man. Straord.
GOA-EDI96,Approvato,30/12/2016,Aeroporto di Genova S.p.A.,"Riqualifica laboratori di manutenzione - PM, 15 ",100000,100000,03/02/2017,30/06/2017,21268.66,40,40,21.27,"0,00 %",PMS - Piano Man. Straord.
GOA-INV100,Approvato,30/12/2016,Aeroporto di Genova S.p.A.,"Rifacimento soletta di copertura vasca di sollevamento p.nord - PM, 19",15910,15910,03/02/2017,18/10/2016,16742,100,100,105.23,"0,00 %",PMS - Piano Man. Straord.
GOA-INV71,Approvato,03/11/2013,Aeroporto di Genova S.p.A.,Manutenzione piazzale Nord FASE 1 - DA ENAC,201529.68,164529.68,14/01/2014,05/08/2014,169529.68,100,100,103.04,"0,00 %",Piazzali
GOA-INV72,Approvato,01/06/2016,Aeroporto di Genova S.p.A.,Manutenzione piazzali SUD - DA ENAC,1248413.97,966241.67,12/09/2016,30/10/2017,1216847.56,100,100,125.94,"0,00 %",Piazzali
GOA-INV98,Approvato,04/05/2016,Aeroporto di Genova S.p.A.,Manutenzione Piazzale Nord Fase 2 - DA ENAC,1117480.24,994087.39,21/12/2016,11/12/2018,1056064.63,100,100,106.23,"0,00 %",Piazzali
GOA-INV99,Approvato,30/12/2016,Aeroporto di Genova S.p.A.,"Adeguamento sistema raccolta acque p.sud - PM, 18",35458.58,35458.58,03/02/2017,31/10/2016,39098.58,100,100,110.27,"0,00 %",PMS - Piano Man. Straord.
GOA-NET101,Approvato,30/12/2016,Aeroporto di Genova S.p.A.,"Rifacimento cavi 400 Hz e relativi avvolgitori - PM, 21",88810,88810,03/02/2017,30/06/2017,90460,100,100,101.86,"0,00 %",PMS - Piano Man. Straord.
GOA-NET110,Approvato,30/12/2016,Aeroporto di Genova S.p.A.,"Manutenzione straordinaria cabina di trasformazione - PM, 17",15549.99,15549.99,03/02/2017,31/01/2017,37834.2,100,100,243.31,"0,00 %",PMS - Piano Man. Straord.
GOA-NET38,Approvato,30/12/2016,Aeroporto di Genova S.p.A.,"Manutenzione straordinaria BHS - PM, 8",20073,20073,03/02/2017,31/10/2016,24823,100,95,123.66,"0,00 %",PMS - Piano Man. Straord.
GOA-NET52,Approvato,30/12/2016,Aeroporto di Genova S.p.A.,"Ammodernamento e potenziamento impianti frigo - PM, 3",285335.82,285335.82,03/02/2017,31/10/2018,368367.74,100,100,129.1,"0,00 %",PMS - Piano Man. Straord.
GOA-NET82,Approvato,30/12/2016,Aeroporto di Genova S.p.A.,"Adeguamento ascensori - PM, 2",14650,14650,03/02/2017,20/01/2017,16950,100,100,115.7,"0,00 %",PMS - Piano Man. Straord.
GOA-SEC103,Approvato,30/12/2016,Aeroporto di Genova S.p.A.,"Riqualifica varchi di sicurezza - PM, 14",60000,60000,03/02/2017,30/11/2016,117416.03,100,98,195.69,"0,00 %",PMS - Piano Man. Straord.
GOA-STR42,Approvato,30/12/2016,Aeroporto di Genova S.p.A.,"Riqualifica viabilit� attuale segnaletica ed arredo - PM, 9",16394.21,16394.21,03/02/2017,31/12/2017,50719.21,100,100,309.37,"0,00 %",PMS - Piano Man. Straord.
LIN-AH2427,Approvato,04/11/2015,SEA Spa,L5.5-LIN - Regimentazione Lambro,4594716.14,2830682.16,,26/01/2018,3949628.98,100,100,139.53,"0,00 %",
LIN-EDI466,Approvato,19/01/2016,SEA Spa,Nuovo Hangar SEA PRIME ,3325684.01,2876991,,15/03/2017,6925476.29,100,100,240.72,"0,00 %",
LIN-EDI468,Approvato,19/05/2017,SEA Spa,FORNITURA DIRETTA PAVIMENTI L.0370 ,387316.48,387316.48,30/06/2017,12/12/2017,205261.2,100,100,53,"0,00 %",
LIN-EDI469,Approvato,19/05/2017,SEA Spa,"RESTYLING CASSE, ARRIVI, BAGAGLI, MARCIAPIEDI ESTERNI E PARAPETTO L.0370",3535316.08,2913844.66,30/06/2017,27/04/2018,3361748.36,100,100,115.37,"0,00 %",
LIN-EDI470,Approvato,19/05/2017,SEA Spa,"RESTYLING FACCIATE, PENSILINA E SCRITTA SOMMITALE L.0370 ",4071546.46,3403606.91,30/06/2017,29/04/2018,4599012.84,99.94,99.94,135.12,"0,00 %",
LIN-EDI472,Approvato,21/02/2017,SEA Spa,Nuova sala Leonardo (2� piano) e relativi collegamenti verticali L.0370,245453.04,238453.04,,02/03/2018,231043,100,100,96.89,"0,00 %",
LIN-EDI474,Approvato,19/09/2016,SEA Spa,Rimozione portale segnaletica Igp Decaux Gencantieri - 58 L.0370 4100020254 ,17000,17000,,06/02/2017,10814.41,100,100,63.61,"0,00 %",
LIN-EDI475,Approvato,19/09/2016,SEA Spa,Opere propedeuticheinstallazione  Igp Decaux Gencantieri - 57 L.0370 ,50000,50000,,19/04/2017,41983.45,100,100,83.97,"0,00 %",
LIN-EDI476,Approvato,03/02/2016,SEA Spa,Nuovo varco staff L.0379 Gencantieri - 21 4100015496 ,62697.54,62697.54,,05/05/2016,77464.72,100,100,123.55,"0,00 %",
LIN-EDI487,Approvato,28/04/2017,SEA Spa,Nuova sala Leonardo (2� piano)  opere e impianti L.0370  ,1605972.58,1110509.05,30/06/2017,19/03/2018,1439005.61,100,100,129.58,"0,00 %",
LIN-EDI492,Approvato,18/07/2017,SEA Spa,Percorsi dedicati E-gates L.0410 gara  ,339503.49,308686.23,13/04/2018,20/06/2018,276369.53,89,89,89.53,"0,00 %",
LIN-EDI496,Approvato,19/10/2016,SEA Spa,Nuovi tornelli controllo accessi area sterileL.0406 Gencantieri - 51 4100020672 ,161917.64,161917.64,,24/03/2017,161611.22,100,100,99.81,"0,00 %",
LIN-EDI497,Approvato,19/10/2016,SEA Spa,Nuovi tornelli controllo accessi area sterile - Forniture ICT L.0406 gara   ,193000,193000,,27/06/2017,44113.6,100,100,22.86,"0,00 %",
LIN-EDI501,Approvato,04/08/2014,SEA Spa,Ricollocazione distribuzione carburante L.0304  Costruzioni Montagna Srl 4100019230 ,278018.79,278018.79,06/02/2015,21/03/2018,276985.87,99.95,99.95,99.63,"0,00 %",
LIN-EDI503,Approvato,30/06/2017,SEA Spa,LIN - PIANO MANUTENZIONI 2017,2915000,2915000,12/10/2017,31/12/2017,2946307.22,100,100,101.07,"0,00 %",
LIN-INV447,Approvato,26/04/2016,SEA Spa,Riqualifica pavimentazione taxiway Kilo Aff. 8 L.0390 VITALI 4100016117  ,395032,395032,08/06/2016,10/10/2016,394977.74,99.99,99.99,99.99,"0,00 %",
LIN-INV459,Approvato,06/07/2016,SEA Spa,Riqualifica pavimentazione taxiway T  Aff. 15 L.0390 VITALI 4100017859  ,504469.33,504469.33,13/07/2016,28/09/2016,503410.59,99,99,99.79,"0,00 %",
LIN-INV460,Approvato,06/07/2016,SEA Spa, AVL Riqualifica pavimentazione taxiway T Aff. 5 L.0390 GEMMO 4100017875  ,48842.66,48842.66,13/07/2016,29/09/2016,45453.37,93,93,93.06,"0,00 %",
LIN-INV461,Approvato,19/01/2016,SEA Spa,Ampliamento Piazzale Ovest L.0360  Bacchi  4100017033  ,2238185.25,2076988.46,,10/03/2017,2129723.56,100,100,102.54,"0,00 %",
LIN-INV480,Approvato,04/03/2016,SEA Spa,Basamento per rulliere ULD  L.0378 Gencantieri  4100017563 ,60057.24,55557.24,,13/09/2017,44033.26,100,100,79.26,"0,00 %",
LIN-INV483,Approvato,29/03/2017,SEA Spa,Piazzale Nord nuova area deicing L.0409  ,3385271.45,3320687.2,18/07/2017,19/01/2018,4958942.38,79,100,149.33,"0,00 %",
LIN-NET457,Approvato,29/11/2016,SEA Spa,Sistema antintrusione perimetrale L.0350  Bilfinger Sielv Facility Management 4100015633  ,551579.69,538149.12,10/04/2017,04/02/2017,508172.24,100,100,94.43,"0,00 %",
LIN-NET463,Approvato,03/12/2012,SEA Spa,Cabina di trasformazione e distribuzione D (Area mensa-Hangar)  L.0236 Gemmo Spa 4100010526  ,1201169.57,1201169.57,23/01/2013,03/03/2016,1201169.57,100,100,100,"0,00 %",
LIN-NET464,Approvato,12/07/2016,SEA Spa,"Rifacimento Cabina Elettrica ""G"" L.0337 Rti Gruppo PSC 4100017226  ",998124.04,998124.04,12/07/2016,01/09/2017,1154146.18,100,100,115.63,"0,00 %",
LIN-NET473,Approvato,11/01/2017,SEA Spa,"Intervento urgente di sostituzione dei canali nella centrale di condizionamento ""D nuova"" L.0403 CPL",293207.43,293207.43,08/03/2016,10/05/2017,292357.13,100,100,99.71,"0,00 %",
LIN-NET481,Approvato,01/04/2016,SEA Spa,Potenziamento automazione telecontrollo delle reti interne  L.0336 PSC 4100017278 ,370635.17,370635.17,,28/07/2017,408024.88,100,100,110.09,"0,00 %",
LIN-NET490,Approvato,09/02/2016,SEA Spa,Impianto clorazione acqua per aeromobili comprensivo nuovo fabbricato L.0375  ,67660.58,65307.55,,06/11/2017,64729.26,100,100,99.11,"0,00 %",
MXP-EDI572,Approvato,10/05/2016,SEA Spa,Riconfigurazione Area Commerciale Sud M.0532 R.T.I. GENCANTIERI    ,2425308.35,2383642.56,13/04/2016,22/08/2017,2112323.98,100,100,88.62,"0,00 %",
MXP-EDI574,Approvato,22/12/2015,SEA Spa,3/3 completamento opere -opere civili M.0167  R.T.I. ITINERA 4500047026  ,47274527.65,46854041.91,,17/02/2016,46849422.19,100,100,99.99,"0,00 %",
MXP-EDI575,Approvato,22/01/2016,SEA Spa,3/3 completamento opere - impianti elettrici e speciali M.0167 R.T.I. GEMMO 4500047323  ,28328764.76,27365716.36,,22/04/2016,27331940.06,100,100,99.88,"0,00 %",
MXP-EDI576,Approvato,23/12/2015,SEA Spa,3/3 completamento opere - impianti meccanici  M.0167 R.T.I. CEFLA 4500047429  ,20519564.49,19396172.94,,01/04/2016,19395838.71,100,100,100,"0,00 %",
MXP-EDI577,Approvato,23/07/2014,SEA Spa,3/3 completamento opere - Impianti di trasporto persone M.0275 SCHINDLER 4500050434  ,6666647.63,6416647.63,,23/05/2015,6415438.94,100,100,99.98,"0,00 %",
MXP-EDI581,Approvato,19/11/2015,SEA Spa,Opere urgenti per ottenimento C.P.I. fase 1 Aff. 9  M.0522 R.T.I. GENCANTIERI  4100013544  ,2352983.65,2352983.65,27/01/2016,06/06/2016,2328593.36,100,100,98.96,"0,00 %",
MXP-EDI584,Approvato,27/09/2016,SEA Spa,Interventi per il rinnovo CPI  fase 1 Aff. 43 M.0522 R.T.I. GENCANTIERI    ,851707.04,851707.04,25/01/2017,19/11/2016,850114.82,100,100,99.81,"0,00 %",
MXP-EDI586,Approvato,23/03/2016,SEA Spa,Impianto BHS/check-in M.0533 SIEMENS 4100014163  ,287396.34,287396.34,,07/03/2016,287396.34,100,100,100,"0,00 %",
MXP-EDI587,Approvato,23/03/2016,SEA Spa,Opere propedeutiche Aff. 17  M.0533 R.T.I. GENCANTIERI  4100013969  ,195260.16,195260.16,,06/06/2016,193416.7,100,100,99.06,"0,00 %",
MXP-EDI591,Approvato,23/03/2016,SEA Spa,Riconsegna bagagli arrivi M.0533 MECHANICA   ,580882,580882,,16/12/2016,580882,100,100,100,"0,00 %",
MXP-EDI594,Approvato,02/07/2015,SEA Spa,Pr. esecutiva e la realizzazione del nuovo edificio della stazione ferroviaria t2 M.0357 ITINERA,27695592.57,27332559.57,15/12/2015,04/11/2016,27317430.25,99,99,99.94,"59,14 %",
MXP-EDI619,Approvato,11/04/2016,SEA Spa,Nuova Strada Cargo  M.0514  ,1399923.75,823296.47,25/01/2017,19/05/2017,876437.19,100,100,106.45,"0,00 %",
MXP-EDI621,Approvato,30/05/2016,SEA Spa,nuovo Magazzino presso la Cargo City  M.0404 TPL 4100012155 ,116857.6,116857.6,07/09/2016,14/11/2016,10846180.19,100,100,9281.54,"0,00 %",
MXP-EDI622,Approvato,30/05/2016,SEA Spa,Opere aggiuntive  M.0404 TPL 4100018422  ,1013961.22,1013961.22,07/09/2016,16/09/2016,1013961.22,80,20,100,"0,00 %",
MXP-EDI624,Approvato,03/07/2015,SEA Spa,Realizzazione di un nuovo magazzino per cargo handler M.0467 TPL 4100016133  ,9968200.42,9054092,02/12/2015,30/08/2018,14181574.72,82,100,156.63,"0,00 %",
MXP-EDI626,Approvato,15/04/2016,SEA Spa,Interventi di ripristino a seguito nubifragio fase 2 - By-pass Aff. 19   M.0523 R.T.I. GENCANTIERI  ,694393.54,670358.03,,30/11/2016,669035.77,100,100,99.8,"0,00 %",
MXP-EDI627,Approvato,05/09/2016,SEA Spa,Interventi di ripristino a seguito nubifragio fase 2 -Impermeabilizz. E copertura M.0523  ,1376039.25,1199816.61,,30/09/2017,3191156.86,100,100,265.97,"0,00 %",
MXP-EDI629,Approvato,27/01/2016,SEA Spa,Riconfigurazione ex area filtri di sicurezza piazza con nuovo negozio zara M.0532 CVL 4100016639  ,1061813.96,1061813.96,26/04/2016,30/11/2016,1267131.23,100,100,119.34,"0,00 %",
MXP-EDI630,Approvato,22/09/2016,SEA Spa,Restyling gates 1.50 CDM Aff. 33 M.0532 R.T.I. GENCANTIERI   ,2128177.09,2065669.77,13/04/2017,23/03/2017,2151530.9,100,100,104.16,"0,00 %",
MXP-EDI631,Approvato,23/03/2016,SEA Spa,Riconfigurazione Filtri di sicurezza Aff. 22  M.0533 R.T.I. GENCANTIERI  4100015492 ,2511345,2438568.43,,22/12/2016,2432998.61,99,99,99.77,"0,00 %",
MXP-EDI632,Approvato,23/03/2016,SEA Spa,Riconfigurazione Accesso area ristorazione Aff. 25 M.0533 R.T.I. GENCANTIERI  4100016249 ,293170.63,285313.69,,13/12/2016,284297.67,99,99,99.64,"0,00 %",
MXP-EDI633,Approvato,23/03/2016,SEA Spa,Adeguamento Zona riconsegna Bagagli  M.0533 R.T.I. GENCANTIERI  4100018285  ,414356.36,403979.17,,22/12/2016,403255.02,100,100,99.82,"0,00 %",
MXP-EDI649,Approvato,12/12/2016,SEA Spa,Integrazione della rete di drenaggio dell'area cargo mleM.0537 R.T.I. GENCANTIERI  4100019806,266195.83,258013.36,24/03/2017,20/06/2017,244680.75,100,100,94.83,"0,00 %",
MXP-EDI651,Approvato,26/04/2016,SEA Spa,COPERTURA FOTOVOLTAICA PORZIONE PARCHEGGIO P4M.0404Rti Siram Spa/A&G Multiservice Srl 4100020260 ,93961.55,31961.55,,08/08/2017,555711.75,100,96,1738.69,"0,00 %",
MXP-EDI652,Approvato,30/06/2016,SEA Spa,Messa in sicurezza dell'area cargo M.0563 AR.CO. LAVORI ,694997.63,591943.28,08/02/2017,24/11/2017,635899.71,100,100,107.43,"0,00 %",
MXP-EDI659,Approvato,03/03/2017,SEA Spa,Terminal1 - Satellite B - Restyling Piano Arrivi M.0532 ,1594421.74,1552921.74,13/07/2017,29/01/2018,1702623.85,100,100,109.64,"0,00 %",
MXP-EDI664,Approvato,30/07/2012,SEA Spa,Villaggio azzurro Ghedi M.0461 CVL 4100008351,3237580.33,3237580.33,29/01/2013,09/02/2017,3131664.29,100,100,96.73,"0,00 %",
MXP-EDI670,Approvato,25/01/2016,SEA Spa,Nuova Caserma collegamento al sistema TAM TAM.0535 R.T.I. GENCANTIERI  4100015316 ,77901.98,77901.98,,12/04/2016,74708.84,100,100,95.9,"0,00 %",
MXP-EDI677,Approvato,13/06/2016,SEA Spa,T1-Ampliamento aree pre-imbarco sat.CM.0561  R.T.I. GENCANTIERI   4100018248 ,266166.02,266166.02,01/08/2016,06/12/2016,285386.95,100,100,107.22,"0,00 %",
MXP-EDI678,Approvato,23/06/2017,SEA Spa,Nuova sala VIp Lufthansa M.0588  R.T.I. GENCANTIERI   61  ,547009.45,507153.7,21/09/2017,28/04/2018,679754.13,100,100,134.03,"0,00 %",
MXP-EDI679,Approvato,28/02/2017,SEA Spa,T2-Implementazione impianto condizionamento tunnel preimbarco  M.0583  R.T.I. GENCANTIERI  - 59  ,157565.63,153565.63,29/09/2017,03/07/2017,153565.3,100,100,100,"0,00 %",
MXP-EDI681,Approvato,04/04/2017,SEA Spa,"Ingresso P5 -Nuove pensiline e prefabbricato ""vending machines""  M.0357  R.T.I. ITINERA  ",416075.74,397515.72,26/05/2017,29/06/2017,413939.98,100,100,104.13,"0,00 %",
MXP-EDI682,Approvato,19/04/2017,SEA Spa,"Nuove aree comm.li ex dufry store (+7,90) -Demolizioni e  adeguamenti impiantisitici M.0593  R.T.I. ",1235675.9,1183044.14,21/09/2017,29/09/2017,687340.68,100,100,58.1,"0,00 %",
MXP-EDI693,Approvato,07/06/2017,SEA Spa,Restyling Area Riconsegan Bagagli Schengen (Arrivi A) M.0532 ,2128403.27,1932770.97,01/12/2017,12/10/2018,2141772.37,100,100,110.81,"0,00 %",
MXP-EDI694,Approvato,06/09/2016,SEA Spa,Rinnovo CPI Stazione T1M.0577Gencantieri -44 4100018646 ,495106.11,466979.52,31/05/2017,23/11/2016,466965.07,100,100,100,"0,00 %",
MXP-EDI709,Approvato,18/07/2017,SEA Spa,T1-Percorsi dedicati E-gates M.0589 gara  ,526488.79,480384.83,13/04/2018,20/06/2018,774668.73,74,74,161.26,"0,00 %",
MXP-EDI710,Approvato,18/07/2017,SEA Spa,T2-Percorsi dedicati E-gates M.0590 gara  ,231227.7,209087.9,13/04/2018,20/06/2018,389582.58,93,93,186.32,"0,00 %",
MXP-EDI714,Approvato,24/06/2016,SEA Spa,Opere per nuova viabilit� di accesso cargo city-  zona Sud M.0514 Itinera  ,450407.19,450407.19,21/10/2016,28/06/2017,361585.41,100,100,80.28,"0,00 %",
MXP-EDI722,Approvato,30/06/2017,SEA Spa,MXP - PIANO MANUTENZIONI 2017,6886000,6886000,29/09/2017,31/12/2017,3812526.17,55,55,55.37,"0,00 %",
MXP-EDI726,Approvato,06/06/2018,SEA Spa,Nuova aerostazione Aviazione Generale -  ,3825044.99,3121681.86,04/09/2018,15/07/2019,2907724.02,93,93,93.15,"0,00 %",
MXP-EDI736,Approvato,22/09/2016,SEA Spa,T1-Nuovi magazzini operatori (p. -5.22 e +7.90) M.0559 Gencantieri  ,302796.39,302796.39,12/01/2017,22/12/2016,302782.8,100,100,100,"0,00 %",
MXP-INV599,Approvato,10/08/2016,SEA Spa,Riqualifica Raccordo K - Aff. n. 7 M.0510  VITALI 4100016154   ,551985.16,551985.16,07/10/2015,11/08/2016,538410.99,100,100,97.54,"0,00 %",
MXP-INV601,Approvato,10/10/2016,SEA Spa,Riqualifica Raccordo K - Prc- Aff. 11   ,460007.79,460007.79,07/10/2015,03/11/2016,459756.27,100,100,99.95,"0,00 %",
MXP-INV602,Approvato,10/08/2015,SEA Spa,Riqualifica Raccordo K - Aff.2   M.0510 GEMMO 4100016536  ,389583.11,389583.11,07/10/2015,21/10/2016,364847.31,100,100,93.65,"0,00 %",
MXP-INV604,Approvato,12/06/2015,SEA Spa,Riconfigurazione area de-icing - Opere Civili Fase 1 M.0352 VITALI 4100012293 ,1820382.05,1820382.05,21/07/2015,08/04/2016,1820382.05,100,100,100,"0,00 %",
MXP-INV605,Approvato,12/06/2015,SEA Spa,Riconfigurazione area de-icing Telecontrollo Fase 1 M.0352 PRC 4100014061  ,48553.78,48553.78,21/07/2015,31/08/2016,97107.56,100,100,200,"0,00 %",
MXP-INV606,Approvato,24/03/2016,SEA Spa,Riconfigurazione area de-icing - Opere Civili Fase 2 M.0352 ITINERA    ,1952179.32,1952179.32,13/09/2016,23/12/2016,2058103.49,99,99,105.43,"0,00 %",
MXP-INV607,Approvato,24/03/2016,SEA Spa,Riconfigurazione area de-icing Telecontrollo Fase 2 M.0352   ,548081.26,548081.26,13/09/2016,13/04/2017,552489.44,100,100,100.8,"0,00 %",
MXP-INV609,Approvato,06/07/2016,SEA Spa,Interventi di riqualifica della pavimentazione della pista Aff. 14 M.0555 VITALI 4100017881  ,500286.05,500286.05,28/07/2016,07/11/2016,500201.65,100,100,99.98,"0,00 %",
MXP-INV611,Approvato,06/07/2016,SEA Spa,Riqualifica Pista di volo Impianti Aff. 7 M.0573 GEMMO 4100018283  ,63112.08,63112.08,28/07/2016,03/10/2016,47416.16,74,74,75.13,"0,00 %",
MXP-INV613,Approvato,08/11/2016,SEA Spa,Rulliere stoccaggio ULD vuote M.0579  ,951288.91,951288.91,,30/07/2018,950484.4,89.9,100,99.92,"0,00 %",
MXP-INV636,Approvato,10/08/2015,SEA Spa,Riqualifica Raccordo K - Aff. n. 7    M.0510 GEMMO 4100013259  ,237167.19,237167.19,07/10/2015,20/06/2016,232658.01,100,100,98.1,"0,00 %",
MXP-INV638,Approvato,06/07/2016,SEA Spa,Riqualifica Pista di volo Aff. 16 M.0573 VITALI 4100018340  ,2031906.41,1979312.49,28/07/2016,01/10/2016,1979312.49,100,100,100,"0,00 %",
MXP-INV657,Approvato,06/07/2016,SEA Spa,Riqualifica Pista di volo Impianti Aff. 4 M.0555 GEMMO  ,12930.48,12930.48,28/07/2016,05/10/2016,10368.8,83,83,80.19,"0,00 %",
MXP-INV668,Approvato,04/05/2017,SEA Spa,Sostituzione segnali luminosi CalvertM.0569 GEMMO - 6 4100018235 ,385120.78,385120.78,05/06/2017,08/02/2017,246211.25,100,100,63.93,"0,00 %",
MXP-INV669,Approvato,04/05/2017,SEA Spa,Riqualifica sentiero avvicinamento Calvert pista 35R M.0569   ,653552.7,640666.26,05/06/2017,09/03/2018,614265.6,100,100,95.88,"0,00 %",
MXP-INV680,Approvato,15/05/2017,SEA Spa,Sistema di trattamento acque area de-icing M.0591  ,1233396.28,1112396.28,,10/09/2018,1088297.63,100,100,97.83,"0,00 %",
MXP-INV698,Approvato,29/05/2017,SEA Spa,Riqualifica cavidotii Raccordi WB e Z per impianti AVLM.0592 GEMMO - 9  ,80940.01,77940.01,29/09/2017,19/07/2017,77921.19,100,100,99.98,"0,00 %",
MXP-INV743,Approvato,09/08/2018,SEA Spa,Riqualifica Ch - Civile M.0678 Rti Bacchi Itinera 1 ,1567213.42,1182495.6,20/06/2018,21/09/2018,1171646.6,99,99,99.08,"0,00 %",
MXP-INV744,Approvato,09/08/2018,SEA Spa,Riqualifica Ch - Impianti M.0678 Rti Ig 2 ,87921.49,66338.62,20/06/2018,21/09/2018,61752.06,93,93,93.09,"0,00 %",
MXP-INV745,Approvato,09/08/2018,SEA Spa,Riqualifica Ch - Telecontrollo M.0678 Prc 8 ,98910.25,74629.88,20/06/2018,21/09/2018,72724.41,97,97,97.45,"0,00 %",
MXP-INV747,Approvato,09/10/2018,SEA Spa,Interventi di riconfigurazione della segnaletica di taxiway intersection M.0688 Rti Prc,205637.52,179567.63,07/02/2019,07/11/2018,24334.64,25,25,13.55,"0,00 %",
MXP-NET615,Approvato,25/08/2015,SEA Spa,"Sostituzione di gruppi elettrogeni rotanti delle cabine elettriche n14, 15, 16 e 18  M.0495 EUROSIS",992000,992000,02/12/2015,27/09/2016,1151616,100,100,116.09,"0,00 %",
MXP-NET640,Approvato,29/11/2016,SEA Spa,MXP - Sorveglianza Perimetrale M.0500TPL 4100015633 ,1013823.34,988253.91,10/04/2017,04/02/2017,930769.43,100,100,94.18,"0,00 %",
MXP-NET658,Approvato,05/08/2016,SEA Spa,T2 - Sostituzione quadro di distribuzione cabina elettrica 8 M.0565 Rti Gruppo PSc /Bacchi aff. 3,486124.39,486124.39,,13/12/2017,532420.69,100,100,109.52,"0,00 %",
MXP-NET660,Approvato,24/08/2016,SEA Spa,Installazione nuovo gruppo refrigeratore fabbricato arrivi T2M.0581 ITEM Srl ,238562.82,238562.82,,18/09/2017,301172.15,100,100,126.24,"0,00 %",
MXP-NET662,Approvato,17/11/2016,SEA Spa,Installazione nuovi gruppi refrigeratori d'acqua presso centrale 11M.0552 Gencantieri - 35 410001657,467643.29,467643.29,24/03/2017,13/09/2016,467615.84,100,100,99.99,"0,00 %",
MXP-NET663,Approvato,17/11/2016,SEA Spa,T2-Revamping cabina elettrica 6 M.0571   PSC - 4  ,871333.96,824333.96,24/03/2017,09/12/2017,824261.15,100,100,99.99,"0,00 %",
MXP-NET671,Approvato,15/02/2016,SEA Spa,Opere civili impiantistiche pozzi G H LM.0538 Gencantieri - 8 4100017068 ,311192.22,311192.22,,20/06/2017,311184.85,100,100,100,"0,00 %",
MXP-NET684,Approvato,14/03/2017,SEA Spa,"Interventi per fonti rinnovabili, certificazione edifici, e veicoli elettrici + energy savingM.0558 ",80126.83,73852.74,29/09/2017,24/05/2018,73751.07,100,100,99.86,"0,00 %",
MXP-NET686,Approvato,01/03/2017,SEA Spa,T1-Efficientamento energetico recuperatori calore cdz Area Sud (MS)M.0558 Gencantieri - 45 ,301478.06,301478.06,29/09/2017,25/07/2017,319535.95,100,100,105.99,"0,00 %",
MXP-STR653,Approvato,18/11/2016,SEA Spa,Estensione sistema ZTC al piano arrivi - Lavori M.0529 Gencantieri -48 ,35725.48,31225.48,21/09/2017,07/02/2017,28244.08,100,100,90.45,"0,00 %",
MXP-STR674,Approvato,26/10/2016,SEA Spa,T2-Nuovo prefabbricato ingresso parcheggi a raso viaggiatoriM.0468 Gencantieri 4100018081 ,51275.7,49522.9,,02/11/2016,33050.98,100,100,66.74,"0,00 %",
MXP-STR705,Approvato,21/11/2016,SEA Spa,Estensione sistema ZTL al piano partenze - LavoriM.0528  Gencantieri -47  ,48647.74,44147.74,21/09/2017,10/03/2017,43596.3,100,100,98.75,"0,00 %",
MXP-STR707,Approvato,30/06/2017,SEA Spa,Mxp-Interventi di riqualifica della viabilit� M.0607 Vitali - 23  ,193239.34,193239.34,,09/12/2017,187357.46,100,100,96.96,"0,00 %",
NAP-ALT395,Approvato,21/01/2014,GESAC Spa,C01d_108 - Riqualifica area commerciale piano terra imbarchi,1412646.69,1134420.11,10/02/2014,12/05/2015,947548.14,100,100,83.53,"0,00 %",Altri interventi terminal
NAP-ALT396,Approvato,07/05/2014,GESAC Spa,C01d_110 - Interventi di spostamento controllo passaporti sala arrivi airside,74355.38,74355.38,21/05/2014,30/11/2014,124999.47,100,100,168.11,"0,00 %",Altri interventi terminal
NAP-ALT398,Approvato,24/03/2014,GESAC Spa,C01g_113 - Nuovo customer Service e spostamento agenzia viaggi,109611.41,109611.41,09/05/2014,09/07/2014,147208.72,100,100,134.3,"0,00 %",Altri interventi terminal
NAP-ALT400,Approvato,10/12/2013,GESAC Spa,C01g_125 Realizzazione Noise Remote Control,29150.54,14150.54,13/01/2014,05/02/2014,13504.69,100,100,95.44,"0,00 %",Altri interventi
NAP-ALT430,Approvato,24/07/2017,GESAC Spa,C01g_378 - Sviluppo Progetto BHS,3382848.79,3042848.79,19/10/2017,30/06/2018,3027542.56,100,100,99.5,"0,00 %",Rete e impianti
NAP-ALT436,Approvato,19/10/2016,GESAC Spa,C01g_PUA - Interventi vari (PUA) 2017,115000,115000,19/12/2017,31/12/2017,288375.81,90,90,250.76,"0,00 %",PUA - Piano Utilizzo Aerostazione
NAP-ALT447,Approvato,09/08/2017,GESAC Spa,C01d_MS - Ottimizzazioni operative (MS) 2017,85000,85000,13/10/2017,31/12/2017,79906.35,100,100,94.01,"0,00 %",PMS - Piano Man. Straord.
NAP-ALT448,Approvato,19/10/2016,GESAC Spa,C01d_PUA - Ottimizzazioni operative (PUA) 2017,523705,523705,19/12/2017,31/12/2018,315236.39,100,100,60.19,"0,00 %",PUA - Piano Utilizzo Aerostazione
NAP-ALT449,Approvato,09/08/2017,GESAC Spa,C01e_MS - Interventi IT (MS) 2017,45000,45000,13/10/2017,31/12/2017,29755.81,100,100,66.12,"0,00 %",PMS - Piano Man. Straord.
NAP-ALT458,Approvato,24/07/2017,GESAC Spa,C01.g_348 - Progetto videowall infovoli ,137884.08,55857.88,03/11/2017,31/12/2017,58657.35,100,100,105.01,"0,00 %",Rete e impianti
NAP-EDI374,Approvato,16/10/2014,GESAC Spa,C01a_000 Adeguamento Sismico ,526346.37,526346.37,06/02/2015,27/10/2016,929798.7,69,31.1,176.65,"0,00 %",Altri edifici
NAP-EDI390,Approvato,15/10/2014,GESAC Spa,Ampliamento arrivi Land side 2014 - 2015,830150.16,830150.16,12/12/2014,31/07/2015,799324.66,100,100,96.29,"0,00 %",Altri interventi terminal
NAP-EDI401,Approvato,24/07/2014,GESAC Spa,A08x_143 Ristrutturazione palazzina ex Atitech,2089951.98,1919951.98,08/08/2014,31/07/2015,2193776,100,100,114.26,"0,00 %",Altri edifici
NAP-EDI402,Approvato,12/10/2016,GESAC Spa,A08a_143 - Delta - Ristrutturazione II Piano Palazzina ex Atitech,932677.03,802677.03,27/10/2016,29/05/2017,828456.36,100,100,103.21,"0,00 %",Altri edifici
NAP-EDI403,Approvato,24/05/2012,GESAC Spa,A09x_223 Ampliamento arrivi Air Side ,3281226.26,3001226.26,06/07/2012,26/10/2016,3176775.42,100,100,105.85,"0,00 %",Altri interventi terminal
NAP-EDI404,Approvato,31/07/2015,GESAC Spa,A09x_239 - Realizzazione Gate - Room 15 ,174396.46,139396.46,05/10/2015,31/05/2016,224954.73,100,100,161.38,"0,00 %",Altri interventi terminal
NAP-EDI405,Approvato,07/08/2014,GESAC Spa,C01b_109 Nuovo collegamento verticale partenze Land Side,152781.86,144777.68,02/10/2014,06/11/2015,159573.17,100,100,110.22,"0,00 %",Altri interventi terminal
NAP-EDI422,Approvato,08/06/2016,GESAC Spa,C01d_267 - Ampliamento aree catering (AIRCHEF),271556.52,237556.52,19/08/2016,31/12/2017,237456.52,100,100,99.96,"0,00 %",Altri edifici
NAP-EDI426,Approvato,05/04/2017,GESAC Spa,A15X_361 - Adeguamenti Hangar ex-ATI per Aeroclub / Officina,597580.37,597580.37,13/06/2017,21/06/2018,699527.24,100,100,117.06,"0,00 %",Cargo
NAP-EDI427,Approvato,08/03/2017,GESAC Spa,A15x_364 - Riprotezione locali attivit� di handling restroom handlers,431644.44,131644.44,04/05/2017,30/11/2017,145322.88,100,100,110.39,"0,00 %",Cargo
NAP-EDI433,Approvato,19/10/2016,GESAC Spa,C01b_PUA - Adeguamento Qualit� Sicurezza e Ambiente (PUA) 2017,294122,294122,19/12/2017,31/12/2017,184636.1,90,90,62.78,"0,00 %",PUA - Piano Utilizzo Aerostazione
NAP-EDI434,Approvato,09/08/2017,GESAC Spa,C01b_MS - Adeguamento Qualit� Sicurezza e Ambiente (MS) 2017,567830,567830,13/10/2017,31/12/2017,534232.63,100,100,94.08,"0,00 %",PMS - Piano Man. Straord.
NAP-EDI454,Approvato,19/10/2016,GESAC Spa,A09b_PUA - Ampliamento arrivi land side (PUA) 2017,600000,600000,19/12/2017,31/12/2017,471672.5,100,100,78.61,"0,00 %",PUA - Piano Utilizzo Aerostazione
NAP-EDI460,Approvato,24/05/2017,GESAC Spa,Integrazione al PI - Adeguamento sismico avancorpo Pegaso,361630.48,261605.48,22/06/2017,31/12/2017,284756.69,100,100,108.85,"0,00 %",Altri edifici
NAP-EDI461,Approvato,19/03/2018,GESAC Spa,C01d_476 - Nuova area drop off in locali ex-Boeing,428548.26,325548.26,19/03/2018,24/05/2018,326266.57,100,100,100.22,"0,00 %",Piano qualit?
NAP-EDI474,Approvato,14/03/2018,GESAC Spa,A09_477 - Incremento area controllo passaporti pax in partenza PT,82466.57,51466.57,13/04/2018,21/04/2018,45069.95,100,100,87.57,"0,00 %",Altri interventi terminal
NAP-INV371,Approvato,08/06/2016,GESAC Spa,A25x_252 Adeguamento Taxyway nord e perimetrale ,3538945.73,3108945.73,29/06/2016,27/03/2018,3917675.23,100,100,126.01,"0,00 %",Pista
NAP-INV410,Approvato,07/08/2014,GESAC Spa,A21x_007 - Rimozione impianto AVGAS  - JET A1 ,96939.47,87854.47,02/10/2014,30/03/2015,90637.08,100,100,103.17,"0,00 %",Rete e impianti
NAP-INV411,Approvato,28/09/2015,GESAC Spa,A21x_042 - Convogliamento acque prima pioggia in fognatura pubblica ,1572976.11,1402162.21,,23/05/2016,1420411.11,100,100,101.3,"0,00 %",Rete e impianti
NAP-INV413,Approvato,18/06/2014,GESAC Spa,A18x_006 Riqualifica AVL e Fibra ,364242.89,243438.42,07/08/2014,13/02/2015,189989.59,100,100,78.04,"0,00 %",AVL
NAP-INV414,Approvato,21/01/2015,GESAC Spa,A18x_012 - Manutenzione straordinaria pavimentazione Shoulder e Taxiway B,474123.71,436007.35,11/02/2015,06/07/2015,327692.95,100,100,75.16,"0,00 %",Pista
NAP-INV417,Approvato,29/01/2016,GESAC Spa,A18x_275 - Manutenzione straordinaria Aiming Point ,532079.62,532079.62,,23/12/2015,515229.52,100,100,96.83,"0,00 %",Pista
NAP-INV419,Approvato,21/02/2017,GESAC Spa,A21x_251 - Convogliamento acque di prima pioggia Apron 1 in fognatura pubblica,1746010.08,1516850.94,30/05/2017,06/04/2018,1491447.41,100,100,98.33,"0,00 %",Rete e impianti
NAP-INV423,Approvato,24/04/2017,GESAC Spa,C01d_413 - Riconfigurazione varco carraio,451155.76,344155.76,03/07/2017,04/04/2018,360162.98,100,100,104.65,"0,00 %",Security
NAP-INV424,Approvato,09/08/2017,GESAC Spa,C01d_418 - Adeguamenti infrastrutturali derivanti da certificazione EASA,93122.94,69410.01,12/10/2017,31/12/2017,69410.02,100,100,100,"0,00 %",
NAP-INV431,Approvato,09/08/2017,GESAC Spa,A21x_MS - Ristrutturazione piazzole con rete di drenaggio (MS) 2017,180849,180849,13/10/2017,31/08/2017,17577.22,9.72,9.72,9.72,"0,00 %",PMS - Piano Man. Straord.
NAP-INV443,Approvato,03/03/2017,GESAC Spa,A18_332 - Riposizionamento torri faro piazzola 21 e 22 e rettifica viabilit�,38984.94,36984.94,04/05/2017,21/07/2017,36800,100,100,99.5,"0,00 %",Piazzali
NAP-INV459,Approvato,25/10/2017,GESAC Spa,A21x_456 - Convogliamento acque prima pioggia Apron 2 in fognatura pubblica ,499093.7,353078.59,05/02/2018,25/11/2018,368232.58,100,100,104.29,"0,00 %",Rete e impianti
NAP-INV464,Approvato,05/12/2017,GESAC Spa,A21_469 - Smaltimento acque meteoriche piazzale Aeronautica Militare,248408.06,164376.89,12/01/2018,11/08/2018,164717.28,100,100,100.21,"0,00 %",Rete e impianti
NAP-INV466,Approvato,18/06/2018,GESAC Spa,A18_553 - Modifiche segnaletica stand 11 e 57 Apron1,21358.17,12016.62,18/07/2018,25/07/2018,12016.6,100,100,100,"0,00 %",Piazzali
NAP-INV467,Approvato,26/01/2018,GESAC Spa,A18_539 - Nuovo layout WI/WO,180009.15,154009.15,18/04/2018,16/05/2018,154009.16,100,100,100,"0,00 %",Piazzali
NAP-NET362,Approvato,19/02/2015,GESAC Spa,A20X_181 Area autobotti e fornitori,344606.71,341106.71,01/04/2015,31/12/2015,346324.04,100,100,101.53,"0,00 %",Altri interventi
NAP-NET387,Approvato,11/10/2016,GESAC Spa,A28x_043 Vari - Isola Ecologica,173240.86,150240.86,29/11/2016,30/04/2017,166205.54,100,100,110.63,"0,00 %",Piano tutela ambientale
NAP-NET482,Approvato,06/11/2018,GESAC Spa,C01b_548 - Punti di ricarica elettrica mezzi operativi (Opere edili),63223.33,56223.33,07/11/2018,30/11/2018,55816.49,99,99,99.28,"0,00 %",Piano tutela ambientale
NAP-PRK437,Approvato,09/08/2017,GESAC Spa,A07_MS - Parcheggi (MS) 2017,24000,24000,13/10/2017,31/08/2018,92074.08,100,100,383.64,"0,00 %",PMS - Piano Man. Straord.
NAP-SEC457,Approvato,02/08/2017,GESAC Spa,C01.b_467 - Milgioramento sicurezza e operativit� check-in,15871.8,15871.8,11/08/2017,13/09/2017,15792.44,100,100,99.5,"0,00 %",Security
NAP-STR407,Approvato,04/04/2014,GESAC Spa,A01x_067 - Riconfigurazione percorsi pedonali Charter - Bus ,240060.96,240060.96,24/04/2014,23/12/2014,357508.66,100,100,148.92,"0,00 %","Strade, pertinenze e viadotti"
NAP-STR408,Approvato,17/10/2016,GESAC Spa,A01x_180 - Forecourt progetti speciali: Zona a traffico controllata,352091.79,352091.79,,30/07/2016,261513.31,100,100,74.27,"0,00 %","Strade, pertinenze e viadotti"
NAP-STR409,Approvato,07/03/2014,GESAC Spa,A01z_001 - AREA BLU,64953.61,64953.61,04/04/2014,15/05/2014,68014.89,100,100,104.71,"0,00 %","Strade, pertinenze e viadotti"
OLB-EDI103,Approvato,21/11/2017,GEASAR S.p.A.,RIMODULAZIONE UFFICI DCA - 2� PIANO PALAZZINA UFFICI,67010.06,33997,15/12/2017,19/06/2017,33997,95,95,100,"0,00 %",
OLB-EDI104,Approvato,24/09/2018,GEASAR S.p.A.,Realizzazione di un collegamento coperto tra i corpi Uffici a quota +7.60 e a quota +9.30,64026.4,48723.26,19/10/2018,04/12/2018,48400,90,90,99.34,"0,00 %",
OLB-EDI106,Approvato,22/05/2018,GEASAR S.p.A.,SCHEDA CONTENITORE - RIQUALIFICA EDIFICI AEROPORTUALI IN CONCESSIONE,241731.65,164121.83,07/05/2019,03/07/2018,265056,98,98,161.5,"0,00 %",
OLB-EDI107,Approvato,08/06/2017,GEASAR S.p.A.,Manutenzione straordinaria e installazione dissuasori volatili strutt. molo aerostazione,45694,34640,05/12/2017,31/08/2017,29296.8,53,53,84.58,"0,00 %",
OLB-EDI136,Approvato,24/08/2017,GEASAR S.p.A.,Ampliamento Terminal T2 check-in Voli Charter Opere di finitura ed allestimento ,144402.14,34305,23/11/2017,30/06/2017,34305,96,96,100,"0,00 %",
OLB-EDI137,Approvato,28/11/2017,GEASAR S.p.A.,Ampliamento Terminal T2 check-in Voli Charter Sistemazioni esterne Air-Side ,62019.34,19564.65,19/12/2017,07/06/2017,22036,95,95,112.63,"0,00 %",
OLB-EDI142,Approvato,06/03/2018,GEASAR S.p.A.,Realizzazione aree di preimbarco gate A7-A8-A9-A10,78409.65,33612,17/01/2019,26/04/2018,33770,95,95,100.47,"0,00 %",Altri interventi terminal
OLB-EDI26,Approvato,07/08/2014,GEASAR S.p.A.,RIQUALIFICA SERVIZI IGIENICI 2016,129939.57,112919.8,23/04/2015,19/04/2016,128503.82,100,100,113.8,"0,00 %",
OLB-EDI28,Approvato,27/12/2016,GEASAR S.p.A.,RIQUALIFICA SERVIZI IGIENICI BLOCCHI PS2 E PR8 PIANO SEMINTERRATO E RIALZATO,381546.6,302561.05,08/02/2017,26/05/2017,286312,95,95,94.63,"0,00 %",
OLB-EDI32,Approvato,18/07/2016,GEASAR S.p.A.,RIMODULAZIONE AREA ARRIVI VOLO EXTRA SCHENGEN,49446.49,38225.9,04/11/2016,29/07/2016,49113,95,95,128.48,"0,00 %",
OLB-EDI34,Approvato,12/04/2016,GEASAR S.p.A.,RIMODULAZIONE AREA CONTROLLO PASSAPORTI IN PARTENZA VOLI EXTRA SCHENGEN,74050.79,65706,22/06/2016,01/07/2016,79606,98.5,98.5,121.15,"0,00 %",
OLB-EDI35,Approvato,01/06/2016,GEASAR S.p.A.,REALIZZAZIONE NUOVO GATE PER OPERAZIONI DI IMBARCO A PIEDI,117797.32,36026,05/07/2016,15/07/2016,36026,90,90,100,"0,00 %",
OLB-EDI36,Approvato,22/10/2015,GEASAR S.p.A.,ADEGUAMENTO FUNZIONALE E RIQUALIFICAZIONE AREA DEPOSITI E SERVIZI PIANO SEMINTERRATO,364826.35,334945.21,04/11/2016,14/06/2016,341315.69,75,75,101.9,"0,00 %",
OLB-INV37,Approvato,11/07/2008,GEASAR S.p.A.,ALLUNGAMENTO PISTA DI VOLO A 2700 MT 1� LOTTO,10503052.19,3195556.19,31/07/2012,08/02/2016,3352855.34,95,95,104.92,"100,00 %",
OLB-NET100,Approvato,21/11/2016,GEASAR S.p.A.,IMPLEMENTAZIONE VARCHI CONTROLLI DI SICUREZZA E RIPOSIZIONAMENTO APPARATI RX BAGAGLI FUORI MISURA,89544.14,26662.52,08/02/2017,15/02/2017,26662.52,100,100,100,"0,00 %",
OLB-NET55,Approvato,12/04/2016,GEASAR S.p.A.,EFFICIENTAMENTO IDRICO/ENERGETICO IMPIANTI 2016,125919.02,101505.37,05/07/2016,05/10/2016,107005.55,98,98,105.42,"0,00 %",
OLB-NET56,Approvato,12/05/2017,GEASAR S.p.A.,EFFICIENTAMENTO IDRICO/ENERGETICO IMPIANTI 2017,161024.8,118362.93,19/12/2017,29/09/2017,127606,95,95,107.81,"0,00 %",
OLB-NET63,Approvato,24/05/2018,GEASAR S.p.A.,ADEGUAMENTO E MESSA A NORMA IMPIANTI E AREE LOGISTICHE 2014,49000.01,43307.52,19/04/2019,25/06/2018,36800,90,90,84.97,"0,00 %",
OLB-NET64,Approvato,21/11/2017,GEASAR S.p.A.,ADEGUAMENTO E MESSA A NORMA IMPIANTI E AREE LOGISTICHE 2015,43198.84,35294,28/05/2018,23/03/2018,35294,96,96,100,"0,00 %",
OLB-NET96,Approvato,05/11/2015,GEASAR S.p.A.,Potenziamento ed adeguamento impianti climatizzazione - Nuovo impianto di climatizzazione molo A-R,234669.97,190725.55,05/07/2016,18/07/2016,112036.71,60,60,58.74,"0,00 %",
OLB-NET98,Approvato,16/03/2016,GEASAR S.p.A.,Adeguamento impianti climatizzazione-Nuovo impianto di climatizzazione molo A-R Strutture metalliche,18704.13,17980,20/06/2016,05/05/2017,11080,60,60,61.62,"0,00 %",
OLB-NET99,Approvato,05/11/2015,GEASAR S.p.A.,POTENZIAMENTO E ADEGUAMENTO IMPIANTI CLIMATIZZAZIONE - CONTENITORE,135133.69,72543.36,05/07/2016,27/06/2018,72543.36,90,90,100,"0,00 %",
OLB-STR110,Approvato,28/01/2015,GEASAR S.p.A.,MODIFICA VIABILITA' FRONTE TERMINAL ,180989.26,130540.86,14/01/2016,18/09/2015,178076,96,96,136.41,"0,00 %",
OLB-STR111,Approvato,12/05/2017,GEASAR S.p.A.,AMPLIAMENTO E ADEGUAMENTO AREA PARCHEGGI RENT A CAR LATO EST,41426.88,34175.92,15/12/2017,04/07/2017,52781.74,97,97,154.44,"0,00 %",
OLB-STR112,Approvato,28/04/2017,GEASAR S.p.A.,Ampliamento e adeguamento viabilit� e parcheggi landside - viabilit� e opere connesse 1� lotto,197805.21,140319.96,16/11/2017,27/06/2018,163035.06,95,95,116.19,"0,00 %",
PMO-EDI12,Approvato,15/11/2017,GESAP Spa,Demolizione edificio centrale tecnologica e Demolizione Inceneritore e Depuratore,709933.48,446973.97,18/12/2017,26/07/2018,416835.6,100,100,93.26,"0,00 %",
PMO-EDI13,Approvato,06/03/2017,GESAP Spa,Demolizione edifici 16 e 17 ed Ampliamento parcheggio Rent a Car,549773.8,416887.37,18/10/2017,11/12/2018,420849.49,100,100,100.95,"0,00 %",
PMO-EDI26,Approvato,08/10/2013,GESAP Spa,Pensilina e facciata - Ascensore parcheggio multipiano - Montacarichi Air Side,4407402.47,2885948.01,,24/12/2014,2902019.51,100,100,100.56,"100,00 %",
PMO-EDI27,Approvato,26/10/2009,GESAP Spa,Blocco servizi e spogliatoio personale,498341.55,259641.8,18/11/2009,15/12/2015,207000,100,100,79.73,"100,00 %",
PMO-EDI28,Approvato,09/11/2009,GESAP Spa,Realizzazione nuovo Curb partenze,1565954.34,1077842.78,18/11/2009,23/04/2015,1244200,100,100,115.43,"100,00 %",
PMO-EDI29,Approvato,31/05/2016,GESAP Spa,Nuova hall arrivi - Fase 1 - All.ti 7-15 - Controsoffitti e pavimentazioni,771624.9,588993.75,,07/02/2017,586048.78,100,100,99.5,"100,00 %",
PMO-EDI32,Approvato,09/11/2009,GESAP Spa,Ampliamento sala riconsegna bagagli - Impianti tecnologici - Impianti elettrici,22049.27,9663.88,23/12/2009,15/02/2016,7178.91,40,40,74.29,"100,00 %",
PMO-EDI33,Approvato,03/04/2014,GESAP Spa,Potenziamento cabine elettriche - Impianti tecnologici,2307575.35,1884748.1,,02/10/2018,439290.17,100,100,23.31,"100,00 %",
PMO-EDI34,Approvato,09/11/2009,GESAP Spa,Nuova hall arrivi - Fase 1 - All.ti 7-15 - Impianti tecnologici - Impianti elettrici,150066.37,83879.05,30/12/2009,12/07/2016,64100,95,95,76.42,"100,00 %",
PMO-EDI35,Approvato,09/11/2009,GESAP Spa,"Potenziamento sottocentrali termofrigo ""B"" e ""D"" - Impianti tecnologici - Impianti elettrici",204457.23,118645.24,23/12/2009,11/07/2018,117600,50,50,99.12,"50,77 %",
PMO-EDI36,Approvato,21/07/2014,GESAP Spa,Nuova hall arrivi - Fase 1 - All.ti 7-15 - Impianti meccanici,557174.04,413398.6,,19/07/2016,411331.63,95,95,99.5,"100,00 %",
PMO-EDI39,Approvato,21/07/2014,GESAP Spa,Ampliamento sala riconsegna bagagli - Impianti tecnologici - Impianti meccanici,114768.99,73434.5,,15/02/2016,76177.56,60,60,103.74,"100,00 %",
PMO-EDI41,Approvato,12/01/2016,GESAP Spa,Potenziamento varchi di controllo sicurezza quota +7.00,240872.94,198872.94,30/06/2017,28/08/2016,254621.52,100,100,128.03,"0,00 %",
PMO-EDI42,Approvato,12/01/2016,GESAP Spa,"Adeguamento sismico edificio D, intervento D12",98382.94,82512.76,30/06/2017,05/05/2017,139465.06,100,100,169.02,"0,00 %",
PMO-EDI47,Approvato,06/03/2015,GESAP Spa,Palazzina Servizi - Completamento rustico,677209.69,451451.54,19/08/2015,23/01/2017,505879.81,100,100,112.06,"0,00 %",
PMO-EDI53,Approvato,23/06/2010,GESAP Spa,"Terza sala check in - Opere preliminari, civili, impianti e nuovi banchi check in ed altri arredi",1908099.4,1378449.93,,04/05/2016,1344033.73,100,100,97.5,"100,00 %",
PMO-EDI54,Approvato,12/06/2018,GESAP Spa,Terza sala check in - impianti elettrici e speciali O.A. 20 - PMS 2017-18,126156.88,126156.88,07/08/2018,04/07/2017,121000,90,90,95.91,"0,00 %",Rete e impianti
PMO-EDI55,Approvato,12/06/2018,GESAP Spa,Terza sala check in - Completamento impianto antincendio O.A. 54 - PMS 2017-18,150218.31,150218.31,07/08/2018,05/11/2017,149467.23,99,99,99.5,"0,00 %",Rete e impianti
PMO-FNC8,Approvato,24/03/2016,GESAP Spa,Varco carraio ovest,2164290.49,1529862.23,06/07/2016,17/07/2018,1608153.32,100,100,105.12,"0,00 %",
PMO-INV1,Approvato,30/07/2013,GESAP Spa,Lavori ampliamento piazzale - integrazione area pavimentata lato palermo,5998298.42,5512675.67,13/01/2014,04/07/2016,5485112.25,100,100,99.5,"0,00 %",
PMO-INV25,Approvato,30/05/2017,GESAP Spa,Rifacimento piste e manutenzione straordinaria (piste 07-25 e 02-20),16763931.24,12909626.59,09/06/2017,31/12/2017,12652802.66,100,100,98.01,"0,00 %",
PMO-NET4,Approvato,02/05/2011,GESAP Spa,Nuova Centrale tecnologica e completamento reti fognarie,8874631.68,7918793.42,,29/09/2015,6861170.94,100,100,86.64,"0,00 %",
PMO-NET56,Approvato,19/10/2010,GESAP Spa,Potenziamento capacit� impianto bagagli - BHS terza sala check in ed apparati EDS,1304053.13,979734.45,,23/09/2017,1394200.25,100,100,142.3,"100,00 %",
PMO-NET60,Approvato,29/07/2016,GESAP Spa,Nuovi impianti di illuminazione in sostituzione di quelli esistenti con apparecchi LED (TF10-19),206869.1,184920.7,15/09/2017,16/11/2017,184920.7,100,100,100,"0,00 %",
PMO-NET63,Approvato,12/06/2018,GESAP Spa,Sostituzione proiettori impianti pubblicitari esterni (O.A. n.25),25537.37,25537.37,07/08/2018,20/12/2017,27900,100,100,109.25,"0,00 %",Piano tutela ambientale
PSA-ALT24,Approvato,16/05/2019,SAT Spa,Interventi correlati a problematiche di controllo e monitoraggio rumore,53900,53900,23/10/2019,31/12/2018,53900,100,100,100,"0,00 %",Piano tutela ambientale
PSA-ALT3,Approvato,16/05/2019,SAT Spa,Manutenzioni Straordinarie Varie ,816456,816456,23/10/2019,31/12/2018,814628.36,100,100,99.78,"0,00 %",PMS - Piano Man. Straord.
PSA-EDI13,Approvato,16/05/2019,SAT Spa,Interventi edificio VVF,6510,6510,23/10/2019,31/12/2018,6509.83,100,100,100,"0,00 %",Altri edifici
PSA-EDI52,Approvato,14/10/2016,SAT Spa,Ampliamento terminal passeggeri - Demolizione fabbricato ex Cargo Merci,485020.35,282569.85,,17/05/2017,282569.85,100,100,100,"0,00 %",Altri edifici
PSA-EDI57,Approvato,14/01/2014,SAT Spa,Interventi trasferimento attivit� Cargo Village 2014 - Edile,38003.94,38003.94,19/02/2014,04/04/2014,38003.94,100,100,100,"0,00 %",Cargo
PSA-EDI58,Approvato,14/01/2014,SAT Spa,Interventi trasferimento attivit� Cargo Village 2014 - Meccanico,5900,5900,19/02/2014,31/03/2014,5900,100,100,100,"0,00 %",Cargo
PSA-EDI6,Approvato,14/05/2019,SAT Spa,Interventi risistemazione aree interne aerostazione,6704,6704,23/10/2019,31/12/2018,11637.8,100,100,173.59,"0,00 %",Altri interventi terminal
PSA-EDI60,Approvato,24/07/2017,SAT Spa,Ampliamento Terminal passeggeri - IMBARCHI EXTRA SCHENGEN+RICONSEGNA BAGAGLI (PUA 2017-2018),4163189.42,3564369.15,,09/11/2018,3564369.15,100,100,100,"0,00 %",PUA - Piano Utilizzo Aerostazione
PSA-INV20,Approvato,16/05/2019,SAT Spa,Rifacimento di parti di piazzali aeromobili e opere impiantistiche collegate,830415,830415,23/10/2019,31/12/2018,830720.59,100,100,100.04,"0,00 %",PMS - Piano Man. Straord.
PSA-INV36,Approvato,16/05/2019,SAT Spa,Interventi Pista Secondaria per adeguamento Enac (adeguamento strip lato ovest),97756,97756,23/10/2019,31/12/2018,97755.75,100,100,100,"0,00 %",Pista
PSA-INV51,Approvato,16/05/2019,SAT Spa,Interventi di riqualificazione piste e raccordi (varie) ,73228,73228,23/10/2019,31/12/2018,72922.24,100,100,99.58,"0,00 %",PMS - Piano Man. Straord.
PSA-INV54,Approvato,04/04/2012,SAT Spa,Interventi potenziamento area di manovra  (lavori),20117567.99,15889721.12,02/08/2013,23/12/2016,18845135.27,100,100,118.6,"0,00 %",Pista
PSA-NET21,Approvato,16/05/2019,SAT Spa,Deposito carburanti,242,242,23/10/2019,31/12/2018,242,100,100,100,"0,00 %",Rete e impianti
PSA-NET26,Approvato,16/05/2019,SAT Spa,Efficientamento energetico aerostazione,117429,117429,23/10/2019,31/12/2018,112404.9,100,100,95.72,"0,00 %",Piano tutela ambientale
PSA-NET66,Approvato,20/04/2017,SAT Spa,Riqualificazione e ampliamento impianto di videosorveglianza (PM),670947.5,569097.5,07/09/2017,18/11/2017,569097.48,72.31,36.5,100,"0,00 %",PMS - Piano Man. Straord.
PSA-NET67,Approvato,16/05/2019,SAT Spa,Adeguamento impianti speciali aerostazione (PM),62427,62427,23/10/2019,31/12/2018,62369.88,100,100,99.91,"0,00 %",PMS - Piano Man. Straord.
PSA-NET68,Approvato,17/05/2017,SAT Spa,Adeguamento livelli di illuminazione piazzali aeroporto - Fase 2A Opere edili (PM),25677.99,25677.99,07/09/2017,04/12/2017,25631.82,100,100,99.82,"0,00 %",PMS - Piano Man. Straord.
PSA-NET69,Approvato,17/05/2017,SAT Spa,Adeguamento livelli di illuminazione piazzali aeroporto - Fase 2A Opere elettriche (PM),18882.99,18882.99,07/09/2017,26/01/2018,18883.2,100,100,100,"0,00 %",PMS - Piano Man. Straord.
PSA-NET70,Approvato,17/05/2017,SAT Spa,Adeguamento livelli di illuminazione piazzali aeroporto - Fase 2B Riqualificazione Torri Faro a led ,231369.05,203869.05,07/09/2017,14/04/2018,201147.45,59.09,38.64,98.67,"0,00 %",PMS - Piano Man. Straord.
PSA-NET71,Approvato,16/05/2019,SAT Spa,Adeguamento impianti elettrici (PM) ,97779,97779,23/10/2019,31/12/2018,119727.15,100,100,122.45,"0,00 %",PMS - Piano Man. Straord.
SUF-ALT17,Approvato,16/05/2019,SACAL S.p.A.,Interventi di manutenzione straordinaria - Anno 2018 - delta,556250,556250,23/10/2019,21/12/2018,196833.29,100,100,35.39,"0,00 %",
SUF-AVL5,Approvato,30/09/2015,SACAL S.p.A.,Completamento impianti pista di volo testata 28,1139418.5,798518.94,21/12/2015,22/02/2017,797631.75,100,100,99.89,"90,00 %",
SUF-AVL6,Approvato,01/04/2011,SACAL S.p.A.,Center line ed apparecchiature AVL,1052080.82,756460.63,26/03/2014,13/06/2017,241641.26,80,80,31.94,"90,00 %",
SUF-EDI15,Approvato,21/03/2018,SACAL S.p.A.,Riassetto Layout partenze - area security e check-in,89372.27,56619.87,,04/12/2018,239573.57,100,100,423.13,"0,00 %",
SUF-INV4,Approvato,01/01/2008,SACAL S.p.A.,Adeguamento strip della pista di volo,980659.29,805367.17,02/04/2014,08/07/2016,804267.53,100,100,99.86,"90,00 %",
TRN-EDI40,Approvato,17/12/2015,SAGAT S.p.A.,03_Interventi edili ed imp. di manut. straord. e ristrutt. aer. passeggeri PUA 2017,930000,815000,29/01/2016,31/12/2018,712116.71,100,100,87.38,"0,00 %",PUA - Piano Utilizzo Aerostazione
TRN-EDI44,Approvato,27/06/2017,SAGAT S.p.A.,07_Interventi su impianti elettromeccanici (2017),305000,303500,22/09/2017,31/12/2017,267685.23,100,100,88.2,"0,00 %",Altri interventi
TRN-EDI45,Approvato,27/06/2017,SAGAT S.p.A.,08_Interventi su impianti elettromeccanici (2018),210000,208000,22/09/2017,31/12/2018,120217.51,100,100,57.8,"0,00 %",PMS - Piano Man. Straord.
TRN-EDI49,Approvato,27/06/2017,SAGAT S.p.A.,12_Investimenti diversi su fabbricato e impianto BHS (2017),30000,29500,22/09/2017,31/12/2017,57436.45,100,100,194.7,"0,00 %",Altri edifici
TRN-EDI50,Approvato,27/06/2017,SAGAT S.p.A.,13_Investimenti diversi su fabbricato e impianto BHS (2018),22000,21500,22/09/2017,31/12/2018,31723.28,100,100,147.55,"0,00 %",PMS - Piano Man. Straord.
TRN-EDI53,Approvato,27/06/2017,SAGAT S.p.A.,"16_Int. di manut. straord., ristrutt. e piccole implementazioni su fabbricati vari (2017)",550000,518000,22/09/2017,31/12/2018,581873.06,100,100,112.33,"0,00 %",PMS - Piano Man. Straord.
TRN-EDI54,Approvato,27/06/2017,SAGAT S.p.A.,"17_Int. di manut. straord., ristrutt. e piccole implementazioni su fabbricati vari (2018)",560000,520000,22/09/2017,31/12/2018,470889.06,100,100,90.56,"0,00 %",PMS - Piano Man. Straord.
TRN-EDI83,Approvato,17/12/2015,SAGAT S.p.A.,02.2_Interventi edili ed imp. di manut. straord. e ristrutt. aer. passegg. PUA sino 2016 (2016-2019),770000,674000,29/01/2016,31/12/2016,638583.85,100,100,94.75,"0,00 %",PUA - Piano Utilizzo Aerostazione
TRN-EDI85,Approvato,09/09/2016,SAGAT S.p.A.,"15.2_Int. di manut. straord., ristrutt. e piccole implem. su fabb. vari (sino al 2016) (2016-2019)",546000,515000,20/09/2016,31/12/2016,454016.21,100,100,88.16,"0,00 %",Altri edifici
TRN-EDI93,Approvato,17/12/2015,SAGAT S.p.A.,01.1_Interventi architettonici in aerostazione passeggeri 2016-2017,400000,351000,29/01/2016,31/08/2018,262113.53,100,100,74.68,"0,00 %",PUA - Piano Utilizzo Aerostazione
TRN-EDI96,Approvato,15/09/2016,SAGAT S.p.A.,06.2_Interventi su impianti elettromeccanici 2016,205000,204000,20/09/2016,31/12/2016,200196.77,100,100,98.14,"0,00 %",Altri interventi
TRN-EDI98,Approvato,15/09/2016,SAGAT S.p.A.,11.2_Investimenti diversi su fabbricato e impianto BHS 2016,79000,77800,20/09/2016,31/12/2016,36949.44,100,100,47.49,"0,00 %",Altri edifici
TRN-INV102,Approvato,27/06/2017,SAGAT S.p.A.,21.4_Altri investimenti di riqualifica su infrastrutture di volo (aree pav. e non pav.) (2017),250000,235000,22/09/2017,31/12/2018,133640.91,100,100,56.87,"0,00 %",PMS - Piano Man. Straord.
TRN-INV134,Approvato,13/07/2017,SAGAT S.p.A.,24.7_Infr. di volo - Riq. shoulder lato ovest della pista di volo nelle tr.compr. tra i racc. C e G,507303.64,461392.26,11/09/2017,31/08/2018,562277.68,100,100,121.87,"0,00 %",Pista
TRN-INV135,Approvato,21/06/2017,SAGAT S.p.A.,24.8_Infrastrutt. di volo. Integraz. segnal. orizz di aiming point en. taxiway c.l. e pre-thr. area ,35000,31575.62,05/07/2017,31/12/2017,16582.14,100,100,52.52,"0,00 %",Pista
TRN-INV136,Approvato,13/07/2017,SAGAT S.p.A.,24.9_Infrastrutture di volo - Livellamento area a sud del raccordo golf,93175.47,81643.95,29/09/2017,31/08/2018,87435.78,100,100,107.09,"0,00 %",Pista
TRN-INV78,Approvato,10/02/2016,SAGAT S.p.A.,21.1_Int. di pav. piastra tecnica multifunz. per attiv. di addestr. su simul. a serv. dei VV.F.  .,66173.17,61273.17,18/03/2016,31/12/2016,71422.29,100,100,116.56,"0,00 %",Pista
TRN-INV80,Approvato,06/04/2016,SAGAT S.p.A.,"24.1_Riqual. pav. in conglom. bitum. della shoulder lato ovest pista di volo, racc. B-C",175749.23,162449.23,06/05/2016,31/12/2016,133471.56,100,100,82.16,"0,00 %",Pista
TRN-INV88,Approvato,15/09/2016,SAGAT S.p.A.,21.3_Altri inv. di riqualifica su infrastr. di volo (Aree pavimentate e non pavimentate) (2016),107000,103200,20/09/2016,31/12/2016,317514.08,100,100,307.67,"0,00 %",Pista
TRN-INV89,Approvato,15/09/2016,SAGAT S.p.A.,24.3_Altre opere di adeguamento infrastrutture di volo 2016,140000,134150,20/09/2016,31/12/2016,127297.93,100,100,94.89,"0,00 %",Pista
TRN-NET108,Approvato,15/09/2016,SAGAT S.p.A.,25.2_Adeguamento ed efficientamento impianti 2016,175000,169000,20/09/2016,31/12/2016,160744.57,100,100,95.12,"0,00 %",PUA - Piano Utilizzo Aerostazione
TRN-NET110,Approvato,15/09/2016,SAGAT S.p.A.,"29.2_Adeguamenti infrastrutturali security, PNS, necessit� normative e richieste Enti 2016",350000,339000,20/09/2016,31/12/2016,330808.99,100,100,97.58,"0,00 %",Security
TRN-NET111,Approvato,27/06/2017,SAGAT S.p.A.,"29.3_Adeguamenti infrastrutturali security, PNS, necessit� normative e richieste Enti 2017",320000,309000,22/09/2017,31/08/2018,314854.19,100,100,101.89,"0,00 %",Security
TRN-NET115,Approvato,15/09/2016,SAGAT S.p.A.,31.2_Investimenti per efficientamento sistemi di illuminazione 2016,205000,199900,20/09/2016,31/12/2016,180536.8,100,100,90.31,"0,00 %",Piano tutela ambientale
TRN-NET116,Approvato,27/06/2017,SAGAT S.p.A.,31.3_Investimenti per efficientamento sistemi di illuminazione 2017,100000,96500,22/09/2017,31/08/2018,44402.26,100,100,46.01,"0,00 %",Piano tutela ambientale
TRN-NET117,Approvato,27/06/2017,SAGAT S.p.A.,31.4_Investimenti per efficientamento sistemi di illuminazione 2018,100000,99000,22/09/2017,31/12/2018,92812.76,100,100,93.75,"0,00 %",Piano tutela ambientale
TRN-NET121,Approvato,15/09/2016,SAGAT S.p.A.,32.2_Investimenti per efficientamento energetico 2016,60000,58500,20/09/2016,31/12/2016,40960.21,100,100,70.02,"0,00 %",Piano tutela ambientale
TRN-NET122,Approvato,27/06/2017,SAGAT S.p.A.,32.3_Investimenti per efficientamento energetico 2017,60000,58500,22/09/2017,31/12/2017,60222.24,100,100,102.94,"0,00 %",Rete e impianti
TRN-NET123,Approvato,27/06/2017,SAGAT S.p.A.,32.4_Investimenti per efficientamento energetico 2018,60000,58000,22/09/2017,31/08/2018,33898.27,67,67,58.45,"0,00 %",PMS - Piano Man. Straord.
TRN-NET63,Approvato,27/06/2017,SAGAT S.p.A.,26_Adeguamento ed efficientamento impianti (2017),270000,258000,22/09/2017,31/08/2018,127661.67,100,100,49.48,"0,00 %",PUA - Piano Utilizzo Aerostazione
TRN-PRK133,Approvato,13/04/2017,SAGAT S.p.A.,19.6_Parcheggi landside e viabilit� - Modifiche alla viabilit�,169233.11,144043.76,16/05/2017,31/12/2017,192957.55,100,100,133.96,"0,00 %","Strade, pertinenze e viadotti"
TRN-PRK87,Approvato,15/09/2016,SAGAT S.p.A.,"19.2_Inv. su park(a raso e multip.) ed int. acc. alla viab.(ar. ver., segn.,rev. perc.) (2016)",173400,170000,20/09/2016,31/12/2016,145723.77,100,100,85.72,"0,00 %","Strade, pertinenze e viadotti"
TRN-PRK99,Approvato,27/06/2017,SAGAT S.p.A.,"19.3_Inv.su park (a raso e multip.) ed int. acc.alla viabilit� (aree verdi, segn., rev perc.) (2017)",106416.99,99416.99,22/09/2017,31/12/2017,113428.31,100,100,114.09,"0,00 %","Strade, pertinenze e viadotti"
TRS-ALT2,Approvato,11/05/2016,Aeroporto Friuli Venezia Giulia S.p.A,Fornitura e posa in opera di due nastri trasporto bagagli area Schengen,216508.26,192969.74,08/06/2016,15/12/2016,192969.74,100,100,100,"0,00 %",Forniture
TRS-ALT52,Approvato,05/02/2016,Aeroporto Friuli Venezia Giulia S.p.A,Realizzazione di nuovi ascensori e percorsi privilegiati per disabili - approvvigionamento ascensori,144212.75,105703.86,21/03/2016,20/12/2016,103403.86,95,95,97.82,"0,00 %",PUA - Piano Utilizzo Aerostazione
TRS-ALT54,Approvato,27/07/2016,Aeroporto Friuli Venezia Giulia S.p.A,Realizzazione di nuovi ascensori e percorsi privilegiati per disabili - approvvigionamento ascensore,53356.5,43356.5,11/10/2016,22/12/2016,43921.37,100,100,101.3,"0,00 %",PUA - Piano Utilizzo Aerostazione
TRS-ALT58,Approvato,01/02/2016,Aeroporto Friuli Venezia Giulia S.p.A,Riqualifica funzionale servizi igienici aerostazione passeggeri - approvvigionamenti 2016,182561.44,177599.97,21/03/2016,21/03/2017,216781.07,100,100,122.06,"0,00 %",PUA - Piano Utilizzo Aerostazione
TRS-ALT62,Approvato,21/12/2015,Aeroporto Friuli Venezia Giulia S.p.A,Riqualificazione controlli sicurezza in partenza - approvvigionamenti bagno,37401.36,31572.44,26/02/2016,24/10/2016,27754.92,100,100,87.91,"0,00 %",PUA - Piano Utilizzo Aerostazione
TRS-EDI100,Approvato,19/10/2017,Aeroporto Friuli Venezia Giulia S.p.A,"ECONOMIE - PUA 2016-17 - Lavori blocco vano scala ""C""",45000,39000,07/02/2018,16/07/2017,30408,100,100,77.97,"0,00 %",PUA - Piano Utilizzo Aerostazione
TRS-EDI101,Approvato,26/05/2017,Aeroporto Friuli Venezia Giulia S.p.A,ECONOMIE - PMS 2017 - Adeguamento controlli security,42997.59,36438.71,02/10/2017,29/12/2017,36438.71,100,100,100,"0,00 %",PMS - Piano Man. Straord.
TRS-EDI106,Approvato,26/05/2017,Aeroporto Friuli Venezia Giulia S.p.A,ECONOMIE - PMS 2017 - Demolizione ex TWR,21999.99,21322.94,02/10/2017,31/05/2017,21322.92,100,100,100,"0,00 %",PMS - Piano Man. Straord.
TRS-EDI116,Approvato,25/06/2018,Aeroporto Friuli Venezia Giulia S.p.A,Piano di rientro AUDIT PRM - banchi check-in e banchi gate,260124.7,224474.7,18/01/2019,31/12/2018,236474.7,100,99,105.35,"0,00 %",PMS - Piano Man. Straord.
TRS-EDI12,Approvato,19/10/2017,Aeroporto Friuli Venezia Giulia S.p.A,Spostamento e riqualifica funzionale e operativa dei servizi generali del Gestore (uffici),50000,45900,07/02/2018,31/07/2018,38485.76,90,90,83.85,"0,00 %",PUA - Piano Utilizzo Aerostazione
TRS-EDI13,Approvato,03/02/2016,Aeroporto Friuli Venezia Giulia S.p.A,Miglioramento sismico porzione aerostazione passeggeri,394739.51,394739.51,19/05/2016,14/03/2017,470689.45,100,100,119.24,"0,00 %",PUA - Piano Utilizzo Aerostazione
TRS-EDI25,Approvato,16/10/2017,Aeroporto Friuli Venezia Giulia S.p.A,Aggiornamento locali Sanit� Marittima ed Aerea,33421.03,27162.67,13/03/2018,24/10/2018,27162.67,100,100,100,"0,00 %",PMS - Piano Man. Straord.
TRS-EDI3,Approvato,26/05/2017,Aeroporto Friuli Venezia Giulia S.p.A,Riqualifica strutturale carosello (BHS) bagagli in partenza,445792.24,346698.74,02/10/2017,27/12/2017,359377.63,100,100,103.66,"0,00 %",PMS - Piano Man. Straord.
TRS-EDI4,Approvato,11/10/2016,Aeroporto Friuli Venezia Giulia S.p.A,Sostituzione lastre in policarbonato della cupola/tunnel e percorsi pedonali,729280.85,720851.85,16/02/2017,31/05/2018,720851.85,100,99,100,"0,00 %",PMS - Piano Man. Straord.
TRS-EDI51,Approvato,21/12/2015,Aeroporto Friuli Venezia Giulia S.p.A,Realizzazione di nuovi ascensori e percorsi privilegiati per disabili - Appalto principale,172802.34,134306.35,21/03/2016,14/03/2017,145895.1,100,100,108.63,"0,00 %",PUA - Piano Utilizzo Aerostazione
TRS-EDI53,Approvato,27/07/2016,Aeroporto Friuli Venezia Giulia S.p.A,Realizzazione di nuovi ascensori e percorsi privilegiati per disabili - lavori complementari,56427.19,41565.79,11/10/2016,24/12/2016,39487.52,91,91,95,"0,00 %",PUA - Piano Utilizzo Aerostazione
TRS-EDI55,Approvato,21/12/2015,Aeroporto Friuli Venezia Giulia S.p.A,Riqualifica funzionale aerostazione passeggeri zona partenze - Appalto principale,2167240.38,1685637.85,17/03/2016,16/03/2017,2041464.35,100,100,121.11,"0,00 %",PUA - Piano Utilizzo Aerostazione
TRS-EDI57,Approvato,18/12/2015,Aeroporto Friuli Venezia Giulia S.p.A,Riqualifica funzionale servizi igienici aerostazione passeggeri - Appalto principale 2016,111673.16,106634.63,21/03/2016,14/03/2017,118285.98,100,100,110.93,"0,00 %",PUA - Piano Utilizzo Aerostazione
TRS-EDI59,Approvato,26/05/2017,Aeroporto Friuli Venezia Giulia S.p.A,Riqualifica funzionale servizi igienici aerostazione passeggeri - Appalto principale 2017,186496.9,177835.29,02/10/2017,17/11/2017,187749.64,100,99,105.58,"0,00 %",PUA - Piano Utilizzo Aerostazione
TRS-EDI61,Approvato,01/11/2015,Aeroporto Friuli Venezia Giulia S.p.A,Riqualificazione controlli sicurezza in partenza - Appalto principale,82488.84,76408.7,26/02/2016,14/03/2017,90403.41,100,100,118.32,"0,00 %",PUA - Piano Utilizzo Aerostazione
TRS-EDI67,Approvato,11/10/2016,Aeroporto Friuli Venezia Giulia S.p.A,demolizione vecchio magazzino merci e realizzazione di un ricovero - fase 1: demolizione,16708.4,14324.2,16/02/2017,10/10/2016,14324.2,100,100,100,"0,00 %",PMS - Piano Man. Straord.
TRS-EDI68,Approvato,13/03/2017,Aeroporto Friuli Venezia Giulia S.p.A,Demolizione vecchio magazzino merci e realizzazione di un ricovero - fase 2: realizzazione ricovero ,216426.49,177474.59,17/11/2017,27/12/2017,185300.15,100,100,104.41,"0,00 %",PMS - Piano Man. Straord.
TRS-EDI69,Approvato,17/10/2016,Aeroporto Friuli Venezia Giulia S.p.A,Sviluppo dell'accessibilit� e dell'intermodalit� aeroportuale - POLO intermodale - I LOTTO,9249277.89,6429251.55,18/10/2017,18/12/2018,6671189.68,99,99,103.76,"84,12 %",Altri edifici
TRS-EDI81,Approvato,17/10/2016,Aeroporto Friuli Venezia Giulia S.p.A,Sviluppo dell'accessibilit� e dell'intermodalit� aeroportuale - POLO intermodale - II LOTTO,6719685.06,5770905.02,,18/12/2018,6667248.57,100,100,115.53,"100,00 %",Altri edifici
TRS-EDI85,Approvato,19/12/2017,Aeroporto Friuli Venezia Giulia S.p.A,ECONOMIE - Miglioramento esterno aerostazione passeggeri,522646.24,438894.4,16/03/2018,19/10/2018,497277.67,100,100,113.3,"0,00 %",PMS - Piano Man. Straord.
TRS-EDI87,Approvato,19/10/2017,Aeroporto Friuli Venezia Giulia S.p.A,ECONOMIE - PUA 2016-17 - Aerostazione passeggeri. Luogo di culto,27361.3,20961.3,07/02/2018,30/03/2018,20961.3,100,100,100,"0,00 %",PUA - Piano Utilizzo Aerostazione
TRS-EDI88,Approvato,19/10/2017,Aeroporto Friuli Venezia Giulia S.p.A,ECONOMIE - PUA 2016-17 - Aero passeggeri. Predisposizione dei sistemi globali locali commerciali,193394.9,180476.61,07/02/2018,14/05/2018,180476.61,100,100,100,"0,00 %",PUA - Piano Utilizzo Aerostazione
TRS-EDI89,Approvato,26/05/2017,Aeroporto Friuli Venezia Giulia S.p.A,ECONOMIE - PMS 2017 - Finiture primo piano aerostazione passeggeri,79010.55,75345.36,02/10/2017,02/08/2017,85803.02,99,1,113.88,"0,00 %",PMS - Piano Man. Straord.
TRS-EDI90,Approvato,26/05/2017,Aeroporto Friuli Venezia Giulia S.p.A,ECONOMIE - PMS 2017 - Finiture area arrivi aerostazione passeggeri,344102.77,335407.45,02/10/2017,12/12/2017,333662.47,99,99,99.48,"0,00 %",PMS - Piano Man. Straord.
TRS-EDI92,Approvato,11/10/2016,Aeroporto Friuli Venezia Giulia S.p.A,ECONOMIE - PMS 2016 - Rifacimento del manto di impermeabilizzazione,63021.52,60370.4,16/02/2017,28/02/2017,47044.9,75,75,77.93,"0,00 %",PMS - Piano Man. Straord.
TRS-EDI94,Approvato,11/10/2016,Aeroporto Friuli Venezia Giulia S.p.A,ECONOMIE - PMS 2016 - Riqualifica locali Polizia di Stato,13876.47,11880,16/02/2017,20/07/2017,11800,100,100,99.33,"0,00 %",PMS - Piano Man. Straord.
TRS-EDI95,Approvato,11/10/2016,Aeroporto Friuli Venezia Giulia S.p.A,ECONOMIE - PMS 2016 - Miglioramento facciata aerostazione passeggeri,56294.03,51235.73,16/02/2017,30/03/2018,50900,99,99,99.34,"0,00 %",PMS - Piano Man. Straord.
TRS-FNC109,Approvato,30/11/2017,Aeroporto Friuli Venezia Giulia S.p.A,Manutenzione straordinaria recinzione doganale tratti nord e nord-est : Nuovo parcheggio VVF,62449.14,58349.14,13/03/2018,31/10/2018,57349.12,100,100,98.29,"0,00 %",PMS - Piano Man. Straord.
TRS-FNC110,Approvato,25/06/2018,Aeroporto Friuli Venezia Giulia S.p.A,Manutenzione straordinaria recinzione doganale tratti nord e nord-est: manutenzione recinzione,58643.76,42893.76,08/04/2019,21/12/2018,42893.76,99,100,100,"0,00 %",PMS - Piano Man. Straord.
TRS-INV16,Approvato,28/05/2014,Aeroporto Friuli Venezia Giulia S.p.A,"Manutenzione straordinaria ""stand 13"" piazzale sosta aeromobili",605323.68,534323.68,16/06/2016,02/08/2017,543443.18,100.01,100.01,101.71,"0,00 %",Piazzali
TRS-NET108,Approvato,26/05/2017,Aeroporto Friuli Venezia Giulia S.p.A,"ECONOMIE - PMS 2017 - Realizzazione delle vasche per lo stoccaggio dei ""bottini di bordo""",29234.52,25834.52,02/10/2017,21/12/2018,25834.52,99,100,100,"0,00 %",PMS - Piano Man. Straord.
TRS-NET19,Approvato,20/02/2017,Aeroporto Friuli Venezia Giulia S.p.A,Impianti strutturali. Adeguamento funzionale e normativo impianti,304018.59,264360.89,24/03/2017,19/12/2017,306944.77,100,100,116.11,"0,00 %",PMS - Piano Man. Straord.
TRS-NET20,Approvato,11/10/2016,Aeroporto Friuli Venezia Giulia S.p.A,Installazione di un impianto fotovoltaico per un picco di almeno 40kW,344089.31,264075.48,30/05/2017,27/12/2017,269075.48,100,100,101.89,"0,00 %",Rete e impianti
TRS-NET21,Approvato,18/05/2016,Aeroporto Friuli Venezia Giulia S.p.A,Adeguamento energetico mediante sostituzione illuminazione con lampade a LED,70970.92,61734.42,11/10/2016,27/09/2017,48466.03,85,85,78.51,"0,00 %",PMS - Piano Man. Straord.
TRS-NET30,Approvato,11/10/2016,Aeroporto Friuli Venezia Giulia S.p.A,Installazione sistema per la misurazione dei consumi energetici,53050,40050,16/02/2017,17/10/2017,30386.52,100,100,75.87,"0,00 %",PMS - Piano Man. Straord.
TRS-NET47,Approvato,11/10/2016,Aeroporto Friuli Venezia Giulia S.p.A,Adeguamento normativo Caserma Vigili del Fuoco - 1^ stralcio,17792,14292,16/02/2017,27/06/2017,14657,100,100,102.55,"0,00 %",PMS - Piano Man. Straord.
TRS-NET48,Approvato,11/10/2016,Aeroporto Friuli Venezia Giulia S.p.A,Adeguamento normativo Caserma Vigili del Fuoco - 2^ stralcio,45345.05,35345.05,16/02/2017,27/12/2017,45274.8,100,100,128.09,"0,00 %",PMS - Piano Man. Straord.
TRS-STR111,Approvato,20/11/2017,Aeroporto Friuli Venezia Giulia S.p.A,Ottimizzazione viabilit� e aree sosta/parcheggio - Stralcio opere edili,207825.21,200856.66,07/12/2017,31/10/2018,261321.71,100,100,130.1,"0,00 %",PMS - Piano Man. Straord.
TRS-STR112,Approvato,20/11/2017,Aeroporto Friuli Venezia Giulia S.p.A,Ottimizzazione viabilit� e aree sosta/parcheggio - Stralcio automazioni,355622.43,300961.63,07/12/2017,29/10/2018,321217.52,99,99,106.73,"0,00 %",PMS - Piano Man. Straord.
VCE-ALT272,Approvato,01/01/2015,SAVE Spa,1.100.16NC_Estensione temporanea check in,2200850.73,2022848.88,30/06/2015,27/07/2015,1007314,95,95,49.8,"0,00 %",
VCE-ALT351,Approvato,11/07/2017,SAVE Spa,Ampliamento TL1 - Impermeabilizzazione viabilit� doppio  livello e pavimento (ex VCE-EDI296),2423123.28,1965465.53,13/12/2017,06/07/2018,2107313.63,100,100,107.22,"0,00 %",Altri interventi terminal
VCE-ALT354,Approvato,06/06/2016,SAVE Spa,Ampliamento TL1 - Nuova segnaletica luminosa (ex VCE-ALT305),408564.16,264653.33,14/07/2016,04/11/2016,264653.33,100,100,100,"0,00 %",Altri interventi terminal
VCE-ALT358,Approvato,06/12/2016,SAVE Spa,Ampliamento TL1 - Cascate e sedute d'acqua,1158503.81,961985.35,05/01/2017,02/08/2017,969681.24,100,100,100.8,"0,00 %",Altri interventi terminal
VCE-ALT373,Approvato,24/02/2015,SAVE Spa,Adeguamento Terminal da PUA - Primo ampliamento Check in (ex VCE-ALT272),2185594.13,2007592.29,30/06/2015,27/07/2015,1007314,100,100,50.18,"0,00 %",PUA - Piano Utilizzo Aerostazione
VCE-ALT387,Approvato,01/10/2012,SAVE Spa,Ampliamento Aviazione Generale - lotto 1 (ex VCE-EDI294),110359.13,88188.24,21/01/2013,31/01/2017,93534.48,100,100,106.06,"0,00 %",Altri edifici
VCE-ALT470,Approvato,02/12/2016,SAVE Spa,Ampliamento TL1 - Nuova segnaletica luminosa,150212.5,99251.28,24/03/2017,05/06/2017,80347.85,90,90,80.95,"0,00 %",Altri interventi terminal
VCE-ALT476,Approvato,13/10/2017,SAVE Spa,Realizzazione nuovo varco staff presso ex Terminal,399579.09,260235.03,23/02/2018,06/12/2018,268294.9,100,100,103.1,"0,00 %",Altri edifici
VCE-ALT482,Approvato,06/02/2017,SAVE Spa,PMS 2017 I� stralcio,3900324.32,3900324.32,28/03/2017,03/10/2018,2475614.86,40,40,63.47,"0,00 %",PMS - Piano Man. Straord.
VCE-ALT489,Approvato,17/03/2017,SAVE Spa,Riprotezione varco sicurezza centrale,4023399.67,2976318.89,09/08/2017,31/08/2018,7593672.23,100,100,255.14,"0,00 %",
VCE-ALT490,Approvato,26/01/2017,SAVE Spa,Riprotezione varco di sicurezza centrale - demolizione ex Orto uffici handlers e bagni,225356.01,166846.01,29/06/2017,20/10/2017,181692.35,100,100,108.9,"0,00 %",
VCE-ALT508,Approvato,19/05/2017,SAVE Spa,PMS 2017 II� stralcio,2615835.23,2615835.23,17/11/2017,28/12/2018,936358.73,70,70,35.8,"0,00 %",PMS - Piano Man. Straord.
VCE-ALT558,Approvato,20/10/2017,SAVE Spa, interventi PUA '17 - '18,5945179,5945179,23/01/2018,20/12/2018,991464.42,70,70,16.68,"0,00 %",PUA - Piano Utilizzo Aerostazione
VCE-EDI168,Approvato,01/01/2009,SAVE Spa,2.09_Riprotezione VVF e GdF,12296696.46,10642105.45,06/03/2012,28/12/2015,11686544.86,85,85,109.81,"0,00 %",
VCE-EDI169,Approvato,01/04/2013,SAVE Spa,2.13_Ampliamento pensilina merci,278784.15,210009.34,30/10/2013,17/10/2014,210009.34,100,100,100,"0,00 %",
VCE-EDI174,Approvato,01/01/2014,SAVE Spa,2.22_Adeguamenti sismici ,3163279.44,2435979.44,11/08/2014,19/12/2015,2536212.77,100,100,104.11,"0,00 %",
VCE-EDI177,Approvato,01/06/2013,SAVE Spa,2.32nc_Adeguamento interno palazzina servizi,846860.8,619944.02,21/01/2015,23/09/2016,640382.63,100,100,103.3,"0,00 %",
VCE-EDI180,Approvato,01/01/2013,SAVE Spa,3.01_Moving Walkway. Darsena - Terminal,29756278.9,23726895.48,05/09/2014,07/10/2016,26862362.42,100,100,113.21,"0,00 %",
VCE-EDI257,Approvato,02/05/2013,SAVE Spa,2.21_2_Nuova Autorimessa ,502358.2,381757.45,28/07/2014,10/02/2015,397872.31,100,100,104.22,"0,00 %",
VCE-EDI266,Approvato,01/01/2014,SAVE Spa,1.01b Ampliamento terminal sottoservizi,12963211.11,12653012.99,11/08/2014,28/12/2015,1314517.56,100,100,10.39,"0,00 %",
VCE-EDI267,Approvato,01/03/2013,SAVE Spa,1.01a Ampliamento terminal lotto 1,57184049.39,45345321.98,15/09/2014,30/04/2017,55038351.97,100,100,121.38,"0,00 %",
VCE-EDI277,Approvato,01/10/2014,SAVE Spa,5.34nc_Migliorie asset non aviation - Speedy Park,379704.15,241323.71,16/12/2014,26/03/2015,253050.28,100,100,104.86,"0,00 %",
VCE-EDI290,Approvato,01/04/2015,SAVE Spa,2.35NC_Riprotezione temporanea uffici Rent a Car,604701.22,444572.28,12/06/2015,31/07/2015,444572.28,100,100,100,"0,00 %",
VCE-EDI294,Approvato,01/01/2012,SAVE Spa,1.100.14nc_Ampliamento Aviazione Generale - lotto 1,110359.13,88188.24,21/01/2013,21/02/2014,71909.53,100,100,81.54,"0,00 %",
VCE-EDI295,Approvato,05/05/2014,SAVE Spa,1.100.14nc_Ampliamento Aviazione General - lotto2,90205.14,77532.03,09/12/2014,31/03/2015,77532.03,100,100,100,"0,00 %",
VCE-EDI296,Approvato,01/10/0014,SAVE Spa,1.01c Ampliamento terminal ascensori e scale mobili,1520090.19,1520090.19,27/02/2015,16/11/2015,1541733.96,100,100,101.42,"0,00 %",
VCE-EDI349,Approvato,08/02/2017,SAVE Spa,Ampliamento Terminal LOTTO 1 (ex VCE-EDI267 ),64539050.92,52700323.51,,31/07/2017,64182571.93,100,100,121.79,"0,00 %",Altri interventi terminal
VCE-EDI370,Approvato,26/10/2011,SAVE Spa,Riprotezione VVF e GdF (ex VCE-EDI168),12504596.46,10642105.45,06/03/2012,12/12/2016,12325073.31,100,100,115.81,"0,00 %",Altri edifici
VCE-EDI371,Approvato,07/07/2015,SAVE Spa,Ampliamento e riqualifica sala VIP (ex VCE-EDI167),3390884.56,2143570.86,24/11/2015,29/05/2017,2119394.43,100,100,98.87,"0,00 %",PUA - Piano Utilizzo Aerostazione
VCE-EDI381,Approvato,24/05/2017,SAVE Spa,Secondo ampliamento check in - estensione,4161121.47,2908434.11,12/09/2017,05/06/2018,3244464.57,100,100,111.55,"0,00 %",PUA - Piano Utilizzo Aerostazione
VCE-EDI390,Approvato,01/07/2014,SAVE Spa,Adeguamenti sismici (viabilit�),3163279.44,2435979.44,11/08/2014,19/12/2015,2536212.77,100,100,104.11,"0,00 %",Altri interventi terminal
VCE-EDI392,Approvato,24/09/2014,SAVE Spa,Adeguamento interno palazzina servizi (ex VCE-EDI177),994022.72,567549.78,21/01/2015,23/09/2016,640382.63,100,100,112.83,"0,00 %",Altri edifici
VCE-EDI408,Approvato,12/05/2015,SAVE Spa,RIprotezione uffici Rent a car (ex VCE-EDI290),741709.23,444572.28,12/06/2015,31/07/2015,444572.28,100,100,100,"0,00 %",Altri edifici
VCE-EDI410,Approvato,20/06/2014,SAVE Spa,Moving Wlakway Darsena - Terminal (ex VCE-EDI180),37041526.22,23726895.48,05/09/2014,23/02/2017,27100232.74,100,100,114.22,"0,00 %",Altri edifici
VCE-EDI440,Approvato,26/02/2015,SAVE Spa,Demolizione ex Aerogarage (ex VCE-PRK279),346348.59,61344.21,02/02/2016,06/08/2016,100181.84,100,100,163.31,"0,00 %",Parcheggi
VCE-EDI502,Approvato,07/04/2016,SAVE Spa,Realizzazione nuovo magazzino KLM,67784.28,40849.86,30/12/2016,04/07/2017,51094.66,100,100,125.08,"0,00 %",Altri edifici
VCE-EDI536,Approvato,19/05/2017,SAVE Spa,Demolizione cabina merci,271027.48,183147.83,17/11/2017,07/05/2018,183147.83,100,100,100,"0,00 %","Strade, pertinenze e viadotti"
VCE-EDI543,Approvato,09/05/2018,SAVE Spa,Ampliamento terminal LOTTO 2 - Pier Sud - Wayfinding,785111.11,553738.69,03/08/2018,15/07/2019,414937.68,100,100,74.93,"0,00 %",Altri interventi terminal
VCE-EDI549,Approvato,24/05/2017,SAVE Spa,Secondo Ampliamento Check-in - BHS,1213720.96,870000,12/09/2017,20/06/2018,926845.28,100,100,106.53,"0,00 %",PUA - Piano Utilizzo Aerostazione
VCE-EDI570,Approvato,09/06/2017,SAVE Spa,DHL opere propedeutiche - I stralcio,125626.14,85301.46,19/12/2017,20/07/2018,85301.46,100,100,100,"0,00 %",Rete e impianti
VCE-INV187,Approvato,01/01/2012,SAVE Spa,4.06_Ampliamento Piazzali (fase 1),9200690.82,7142994.5,03/01/2014,07/04/2015,8294299.72,100,100,116.12,"0,00 %",
VCE-INV188,Approvato,02/01/2012,SAVE Spa,4.09_Manut. straordinaria infrastrutture di volo ,628984.54,501994.49,18/07/2013,06/12/2013,369135.27,100,100,73.53,"0,00 %",
VCE-INV203,Approvato,02/01/2011,SAVE Spa,5.25_Aree sosta mezzi rampa,428658.15,318769.24,12/02/2013,11/09/2013,334478.34,100,100,104.93,"0,00 %",
VCE-INV270,Approvato,01/01/2011,SAVE Spa,4.14nc_Riqua e adeguamento normativo infrast (I Fase A),3430978.44,2699429.04,05/11/2014,30/04/2015,2809150.93,100,100,104.06,"0,00 %",
VCE-INV271,Approvato,10/10/0015,SAVE Spa,4.14nc_Riqua e adeguamento normativo infrast (I Fase B),20711586.43,14742040.83,13/11/2014,21/04/2016,16932085.75,100,100,114.86,"0,00 %",
VCE-INV399,Approvato,27/10/2014,SAVE Spa,Riqualifica ed adeguamento normativo infrastrutture di volo - Lotto 1A (ex VCE-INV270),3156902.93,2699429.04,05/11/2014,31/08/2016,5630801.86,100,100,208.59,"0,00 %",Pista
VCE-INV400,Approvato,20/10/2014,SAVE Spa,Riqualifica ed adeguamento normativo infrastrutture di volo - Lotto 1B (ex VCE-INV271),20744714.07,14742040.83,13/11/2014,21/04/2016,16932085.75,100,100,114.86,"0,00 %",Pista
VCE-INV401,Approvato,04/04/2016,SAVE Spa,Riqualifica ed adeguamento normativo infrastrutture di volo - Lotto 1C-a (ex VCE-INV272),169969.87,110001.68,13/09/2016,19/05/2017,129001.66,100,100,117.27,"0,00 %",Pista
VCE-INV402,Approvato,08/02/2016,SAVE Spa,Riqualifica ed adeguamento normativo infrastrutture di volo - Lotto 1C-b (VCE-INV273),5163400.63,4045166.56,06/06/2017,30/05/2018,5003424.22,29.06,29.06,123.69,"0,00 %",Pista
VCE-INV484,Approvato,24/10/2017,SAVE Spa,Riqualifica ed adeg.to  normativo infrastrutture volo lotto 2 - Area canitere Ex camping Alba d'Oro,6224582.12,4920107.02,22/01/2018,30/11/2018,5210370.98,100,100,105.9,"0,00 %",Pista
VCE-INV485,Approvato,24/03/2017,SAVE Spa,Adeguamento Finger A380 (torrino),149337.65,96120.76,11/04/2017,16/10/2017,92047.16,95,95,95.76,"0,00 %",Altri interventi terminal
VCE-INV486,Approvato,24/03/2017,SAVE Spa,Adeguamento Finger A380 (finger),1202889.62,911040.12,11/04/2017,15/12/2017,759547.1,85,85,83.37,"0,00 %",Altri interventi terminal
VCE-INV497,Approvato,17/10/2016,SAVE Spa,Manutenzione straordinaria raccordi Bravo e Sierra,384041.57,319577.55,22/11/2016,07/11/2017,337083.6,100,100,105.48,"0,00 %",Pista
VCE-INV530,Approvato,12/05/2017,SAVE Spa,Riqualifica e adeguamento normativo infrastrutture di volo Lotto 2 - stralcio anticipo opere ,6530109.39,4488382.4,28/06/2017,31/07/2018,5142630.76,100,100,114.58,"0,00 %",Pista
VCE-INV537,Approvato,11/12/2017,SAVE Spa,Riprotezione uffici handlers,578608.34,420041.68,02/03/2018,13/09/2018,420041.68,100,100,100,"0,00 %",Altri edifici
VCE-INV565,Approvato,27/04/2017,SAVE Spa,Manutenzione straordinaria Piste 04R-22L e 04L-22R,738122.7,608456.9,21/06/2017,28/02/2018,729273.4,100,100,119.86,"0,00 %",Pista
VCE-INV566,Approvato,25/07/2017,SAVE Spa,Adeguamento DAAD n. 13-14-19-21-22-25-29-31,1329398.52,973291.91,12/09/2017,10/10/2018,803141.37,100,100,82.52,"0,00 %",Pista
VCE-NET190,Approvato,01/01/2013,SAVE Spa,4.12_Impianti 400 Hz Piazzali Sud,1732031.66,1334496.08,12/02/2014,04/09/2015,1610157.04,100,100,120.66,"0,00 %",
VCE-NET191,Approvato,02/09/2013,SAVE Spa,4.16nc_Impianti  400 Hz Piazzali Nord,982536.51,821036.51,10/06/2014,10/04/2015,930873.88,100,100,113.38,"0,00 %",
VCE-NET209,Approvato,01/01/2004,SAVE Spa,6.03_Smalt. acque meteoriche (I e III stralcio),2152497.96,1740666.92,22/01/2010,27/02/2015,1908605.77,100,100,109.65,"85,00 %",
VCE-NET214,Approvato,01/04/2013,SAVE Spa,"6.18nc_Trig., cunicolo area refrigerata, central",18065993.39,16446168.39,01/08/2014,11/07/2016,16901974.03,100,100,102.77,"0,00 %",
VCE-NET231,Approvato,03/05/2013,SAVE Spa,5.12_MT protezione selettiva,714881.3,592214.89,05/05/2014,30/12/2013,592214.89,100,100,100,"0,00 %",
VCE-NET285,Approvato,14/04/2014,SAVE Spa,5.01_Opere idrauliche Lotto 3 MP03-1 Scatolare Pagliaghetta tratto 1,1102036.08,889984.68,26/06/2014,01/12/2014,837528.07,90,90,94.11,"0,00 %",
VCE-NET288,Approvato,15/12/2014,SAVE Spa,1.100.16NC_Confluenze BHS,1348919.44,1140000,21/05/2015,09/04/2015,1140000,100,100,100,"0,00 %",
VCE-NET353,Approvato,22/12/2014,SAVE Spa,Ampliamento Terminal LOTTO 1 - ascensori e scale mobili,1520090.19,1520090.19,27/02/2015,16/11/2015,1541733.96,100,100,101.42,"0,00 %",Altri interventi terminal
VCE-NET367,Approvato,23/10/2014,SAVE Spa,Adeguamenti antincendio (ex 1.06) - illuminazione sicurezza Terminal (ex VCE-ALT308),368168.19,269703.93,04/03/2015,07/12/2016,269703.93,100,100,100,"0,00 %",Altri interventi terminal
VCE-NET374,Approvato,24/12/2014,SAVE Spa,Adeguamento terminal da PUA - Confluenze BHS (ex VCE-NET288 ),1337566.81,1128647.37,21/05/2015,09/04/2015,1759522.14,100,100,155.9,"0,00 %",PUA - Piano Utilizzo Aerostazione
VCE-NET415,Approvato,10/08/2016,SAVE Spa,Opere idrauliche - Scolmatore Pagliaghetta fase 1 tratto 1 (MP05) (ex VCE-NET283),2956247.06,2188139.3,10/03/2017,11/09/2018,5343426.55,100,100,244.2,"0,00 %",Rete e impianti
VCE-NET416,Approvato,13/10/2015,SAVE Spa,Opere idrauliche - Deviazione Pagliaghetta fase 1 (MP 04) (ex VCE-NET284),533911.42,369622.29,20/01/2016,09/05/2016,359810.65,100,100,97.35,"0,00 %",Rete e impianti
VCE-NET430,Approvato,03/09/2014,SAVE Spa,Allarme recinzione doganale lato laguna,1213086.28,854397.85,06/07/2016,08/02/2017,888703.54,99,99,104.02,"0,00 %",Rete e impianti
VCE-NET453,Approvato,22/05/2017,SAVE Spa,TVCC - parcheggi e viabilit�,3596530.68,2795946.54,06/10/2017,29/10/2018,3070597.01,100,100,109.82,"0,00 %",Rete e impianti
VCE-NET458,Approvato,08/09/2009,SAVE Spa,Smaltimento acque meteoriche (I� e III� Stralcio) - Fase 1,1953209.72,1740666.92,22/01/2010,27/02/2015,1908605.1,100,100,109.65,"85,00 %",Piano tutela ambientale
VCE-NET459,Approvato,29/07/2016,SAVE Spa,Smaltimento acque meteoriche (I� e III� stralcio) - Fase 2,2224504.62,1829506.94,24/11/2016,07/06/2017,1780672.62,100,100,97.33,"36,60 %",Piano tutela ambientale
VCE-NET463,Approvato,14/07/2014,SAVE Spa,"Trigenerazione, cunicolo acqua refrigerata, centrale frigo (ex VCE-NET214 )",18190704,16446168.39,01/08/2014,11/07/2016,16901974.03,100,100,102.77,"0,00 %",Piano tutela ambientale
VCE-NET480,Approvato,26/09/2017,SAVE Spa,Illuminazione piano scoperto Marco Polo Park,249218.51,140882,23/02/2018,12/10/2018,140882.01,100,100,100,"0,00 %",Parcheggi
VCE-NET500,Approvato,06/02/2017,SAVE Spa,Opere elettromeccaniche per la gestione idraulica,369899.57,240899.57,28/03/2017,11/12/2017,240898.31,100,100,100,"0,00 %",Rete e impianti
VCE-NET503,Approvato,25/08/2015,SAVE Spa,TVCC Marco Polo Park,637922.71,470833.34,08/06/2016,14/12/2017,543906.04,100,100,115.52,"0,00 %",Rete e impianti
VCE-NET535,Approvato,19/05/2017,SAVE Spa,Rimozione e smantellamento del vecchio anello idrico lato mensa ,129536.61,94170.52,17/11/2017,08/05/2018,52938.2,100,100,56.22,"0,00 %",Rete e impianti
VCE-NET550,Approvato,13/09/2017,SAVE Spa,Circoline check in provvisori (BHS transitorio 39 check in ) - opere principali,3209792.01,2320255.88,09/11/2017,16/07/2018,4556278.24,100,100,196.37,"0,00 %",PUA - Piano Utilizzo Aerostazione
VCE-NET551,Approvato,13/09/2017,SAVE Spa,Circoline check in provvisori (BHS transitorio 39 check in ) - BHS,3049719.13,2330811.81,09/11/2017,20/07/2018,2558743.97,100,100,109.78,"0,00 %",PUA - Piano Utilizzo Aerostazione
VCE-NET564,Approvato,06/02/2017,SAVE Spa,Revisione integrale CDZ aerostazione - Impianto condizionamento UTA 17,279664.55,216491.81,28/03/2017,13/02/2018,242795.37,100,100,112.15,"0,00 %",Altri interventi terminal
VCE-PRK275,Approvato,07/01/2015,SAVE Spa,3.45NC_PARCHEGGIO TEMPORANEO PARK P-GRECO,213009.38,86547.35,29/05/2015,09/07/2015,92800.44,100,100,107.23,"0,00 %",
VCE-PRK276,Approvato,07/01/2015,SAVE Spa,3.46NC_PARCHEGGIO TEMPORANEO PARK VILLETTE,938314.77,607961.71,07/08/2015,10/05/2016,603940.23,100,100,99.34,"0,00 %",
VCE-PRK409,Approvato,16/03/2016,SAVE Spa,Parcheggi landside nuove caserme VVF e GdF,405856.41,278593.89,24/06/2016,18/10/2017,264276.43,100,100,94.86,"0,00 %",Altri edifici
VCE-PRK420,Approvato,25/11/2016,SAVE Spa,Parcheggio Moving Walkway (ex VCE-PRK185),1450337.75,1020053.76,01/12/2017,05/07/2018,1391716.8,100,100,136.44,"0,00 %",Parcheggi
VCE-PRK423,Approvato,29/05/2015,SAVE Spa, Parcheggio temporaneo Park villette (ex VCE-PRK276),1183367.94,607961.71,07/08/2015,10/05/2016,603940.23,100,100,99.34,"0,00 %",Parcheggi
VCE-PRK438,Approvato,03/10/2014,SAVE Spa,Manutenzione e riqualifica park P4 (ex VCE-PRK280),71734.7,50854.7,21/07/2016,01/03/2017,50854.7,100,100,100,"0,00 %",Parcheggi
VCE-PRK445,Approvato,23/03/2015,SAVE Spa,Park bus Sosta breve Milione (ex VCE-EDI278),451789.75,330521.57,08/06/2015,06/11/2015,345506.68,100,100,104.53,"0,00 %",Parcheggi
VCE-PRK446,Approvato,25/11/2016,SAVE Spa,Coperture Speedy Park (ex VCE-EDI281),430912.03,244521,26/05/2017,14/11/2018,285230.12,100,100,116.65,"0,00 %",Parcheggi
VCE-PRK496,Approvato,17/01/2017,SAVE Spa,Modifica e riqualifica Park per croceristi,447832.31,290832.31,03/03/2017,28/06/2017,337321.71,85,85,115.98,"0,00 %",Parcheggi
VCE-PRK499,Approvato,07/03/2017,SAVE Spa,MPP migliorie impiantistiche II� stralcio,1793531.85,1306840.94,08/08/2017,10/09/2018,1306905.95,100,100,100,"0,00 %",Rete e impianti
VCE-PRK561,Approvato,28/11/2017,SAVE Spa,Parcheggio P6 - Lotto 1,2204648.35,1560145.49,07/02/2018,30/09/2018,1591249.73,100,100,101.99,"0,00 %",Parcheggi
VCE-STR258,Approvato,01/01/2012,SAVE Spa,3.39nc_Messa in sic. e consol. sponde canale Tess. - LOTTO 1,807533.91,665261.79,19/06/2013,15/02/2015,1007256.1,100,100,151.41,"0,00 %",
VCE-STR259,Approvato,01/11/2014,SAVE Spa,3.39nc_Messa in sic. e consol. sponde canale Tess.- LOTTO 2,816868.58,542569.59,15/04/2015,15/04/2016,948950.09,97.42,97.42,174.9,"0,00 %",
VCE-STR418,Approvato,01/12/2014,SAVE Spa,Messa in sicurezza e consolidamento sponde canale Tessera (ex VCE-STR259 ,816868.56,542569.59,15/04/2015,15/04/2016,622445.62,,100,114.72,"0,00 %","Strade, pertinenze e viadotti"
VCE-STR498,Approvato,06/02/2017,SAVE Spa,Spostamento corsia Trasporto Pubblico di Linea  (PMS 2017 I� stralcio),221385.22,148385.22,28/03/2017,30/06/2017,91894.7,80,80,61.93,"0,00 %","Strade, pertinenze e viadotti"
VRN-EDI11,Approvato,13/01/2017,Aeroporto Valerio Catullo di Verona S.p.A. ,demolizione ex inceneritore sistemaz area tecnica,89152.5,62940,07/02/2017,28/08/2017,62940,100,100,100,"0,00 %",Altri edifici
VRN-EDI57,Approvato,03/04/2018,Aeroporto Valerio Catullo di Verona S.p.A. ,interventi minori terminal,144049.64,100014.54,07/06/2018,20/12/2018,82541.16,100,100,82.53,"0,00 %",Altri interventi terminal
VRN-EDI79,Approvato,10/08/2017,Aeroporto Valerio Catullo di Verona S.p.A. ,adeguamento posto di ispezione frontaliero,70407.08,57212.69,23/10/2017,16/07/2018,57212.69,100,100,100,"0,00 %",Altri edifici
VRN-EDI8,Approvato,15/07/2015,Aeroporto Valerio Catullo di Verona S.p.A. ,1.2+1.3 riqualifica aree commerciali e bagni sale imbarco,876441.02,628117.37,06/10/2015,30/10/2016,740148.08,100,100,117.84,"0,00 %",Altri interventi terminal
VRN-EDI80,Approvato,03/04/2018,Aeroporto Valerio Catullo di Verona S.p.A. ,interventi minori edifici vari,104862.55,76650,07/06/2018,21/09/2018,29636,100,100,38.66,"0,00 %",Altri edifici
VRN-EDI89,Approvato,03/04/2018,Aeroporto Valerio Catullo di Verona S.p.A. ,inversione rx 35 con rx 43,27867.63,26010,07/06/2018,31/07/2018,27558,100,100,105.95,"0,00 %",Altri interventi terminal
VRN-INV17,Approvato,04/12/2015,Aeroporto Valerio Catullo di Verona S.p.A. ,4.3+4.11 Riqualifica pavimentazione testata 22 e raccordi,847615.54,625821.64,11/05/2016,31/12/2016,1001429.96,100,100,160.02,"0,00 %",Pista
VRN-INV54,Approvato,03/04/2018,Aeroporto Valerio Catullo di Verona S.p.A. ,interventi minori infrastrutture di volo,19758.27,11800,07/06/2018,31/12/2018,14337,100,100,121.5,"0,00 %",Pista
VRN-INV58,Approvato,27/11/2015,Aeroporto Valerio Catullo di Verona S.p.A. ,riconfigurazione segnaletica piazzale aeromobili - (A) SEGNALETICA,182042.78,143831.19,24/12/2015,02/08/2016,143831.19,100,100,100,"0,00 %",Piazzali
VRN-INV59,Approvato,27/11/2015,Aeroporto Valerio Catullo di Verona S.p.A. ,riconfigurazione segnaletica piazzale aeromobili - (B) TORRI FARO,231134.76,188090.36,24/12/2015,07/12/2016,188090.37,100,100,100,"0,00 %",Piazzali
VRN-INV71,Approvato,06/03/2017,Aeroporto Valerio Catullo di Verona S.p.A. ,Lavori di riqualifica delle infrastrutture di volo raccordi W e Y,750045.82,567692.53,04/08/2017,05/02/2018,605828.59,100,100,106.72,"0,00 %",Pista
VRN-NET35,Approvato,16/03/2018,Aeroporto Valerio Catullo di Verona S.p.A. ,Sostituz luci LED edifici ed insegne,314283.37,224888.31,18/05/2018,24/12/2018,224888.31,100,100,100,"0,00 %",Piano tutela ambientale
VRN-NET48,Approvato,10/05/2016,Aeroporto Valerio Catullo di Verona S.p.A. ,Sostituzione gruppi frigo,125722.31,108587.13,12/05/2016,27/08/2016,108587.15,100,100,100,"0,00 %",Rete e impianti
VRN-NET55,Approvato,03/04/2018,Aeroporto Valerio Catullo di Verona S.p.A. ,interventi vari non prevedibili reti e d impianti,140397.95,115451.84,07/06/2018,01/04/2019,45055,100,100,39.02,"0,00 %",Rete e impianti
VRN-NET61,Approvato,12/07/2016,Aeroporto Valerio Catullo di Verona S.p.A. ,Intervento di breve termine per l'adeguamento del sistema di raccolta e smaltimento delle acque mete,181473.77,121859.27,18/10/2016,05/05/2017,121859.06,100,100,100,"0,00 %",Rete e impianti
VRN-NET69,Approvato,14/03/2017,Aeroporto Valerio Catullo di Verona S.p.A. ,Intervento per la realizzazione della nuova dorsale di collettamento delle acque meteoriche piazzale,546476.74,445728.18,30/05/2017,09/01/2018,461113.74,100,100,103.45,"0,00 %",Rete e impianti
VRN-NET74,Approvato,27/07/2017,Aeroporto Valerio Catullo di Verona S.p.A. ,Intervento per la modifica hangar aeromobili per utilizzo di B787-9 - opere impiantistiche,207466.52,167593.93,12/09/2017,30/11/2017,167593.94,100,100,100,"0,00 %",Rete e impianti
VRN-NET75,Approvato,27/07/2017,Aeroporto Valerio Catullo di Verona S.p.A. ,Intervento per la modifica hangar aeromobili per utilizzo di B787-9 - opere civili,137816.74,99706,12/09/2017,25/01/2018,125648,100,100,126.02,"0,00 %",Altri edifici
VRN-NET76,Approvato,30/05/2017,Aeroporto Valerio Catullo di Verona S.p.A. ,Adeguamento impianti elettrici edificio cargo,114720.65,78033.21,12/09/2017,13/03/2018,80806,100,100,103.55,"0,00 %",Rete e impianti
VRN-NET77,Approvato,11/04/2017,Aeroporto Valerio Catullo di Verona S.p.A. ,PMS stralcio 1 2017,135227.22,119091.22,23/10/2017,30/05/2018,80960.09,100,100,67.98,"0,00 %",PMS - Piano Man. Straord.
VRN-NET78,Approvato,11/04/2017,Aeroporto Valerio Catullo di Verona S.p.A. ,installazione nuovo gruppo elettrogeno per CDZ terminal partenze,188768.46,147766.22,05/05/2017,27/11/2017,147766.22,100,100,100,"0,00 %",Rete e impianti
VRN-NET91,Approvato,03/04/2017,Aeroporto Valerio Catullo di Verona S.p.A. ,Installazione impianto fotovoltaico su pensilina zona partenze,36619.65,25573.75,19/05/2017,28/02/2018,1462,100,100,5.72,"0,00 %",Rete e impianti
VRN-NET92,Approvato,07/03/2018,Aeroporto Valerio Catullo di Verona S.p.A. ,Riqualificazione illuminotecnica del piazzale aeromobili,323926.31,265634.56,26/06/2018,18/12/2018,265634.57,100,100,100,"0,00 %",Rete e impianti
VRN-NET93,Approvato,21/09/2015,Aeroporto Valerio Catullo di Verona S.p.A. ,sostituzione apparecchi illuminanti con tecnologia a LED aree land side,127718.85,113718.85,28/09/2015,23/12/2015,115501.34,100,100,101.57,"0,00 %",Rete e impianti
VRN-PRK52,Approvato,03/04/2018,Aeroporto Valerio Catullo di Verona S.p.A. ,interventi minori sistema viabilit� e parcheggi,26444.73,20475,07/06/2018,19/07/2018,29985,50,50,146.45,"0,00 %",Parcheggi
